Workbook

Sheet Main (hidden)

Sheet الصف الثاني
L1: لغة عربية | O1: لغة إنجليزية | R1: رياضيات | U1: فيزياء | X1: حاسب آلي | AA1: أمن صناعي | AD1: رسم فني | AG1: تخطيط | AJ1: تكنولوجيا العمليات نظري | AM1: تك خامات نظري | AP1: تك الاجهزة | AS1: تاريخ الفنون | AV1: تك العمليات ع | AY1: المجموع الكلي | AZ1: تربية دينية | BC1: النتيجة | BD1: المواد
L2: نصف العام | M2: آخر العام | N2: المجموع | O2: نصف العام | P2: آخر العام | Q2: المجموع | R2: نصف العام | S2: آخر العام | T2: المجموع | U2: نصف العام | V2: آخر العام | W2: المجموع | X2: نصف العام | Y2: آخر العام | Z2: المجموع | AA2: نصف العام | AB2: آخر العام | AC2: المجموع | AD2: نصف العام | AE2: آخر العام | AF2: المجموع | AG2: نصف العام | AH2: آخر العام | AI2: المجموع | AJ2: نصف العام | AK2: آخر العام | AL2: المجموع | AM2: نصف العام | AN2: آخر العام | AO2: المجموع | AP2: نصف العام | AQ2: آخر العام | AR2: المجموع | AS2: نصف العام | AT2: آخر العام | AU2: المجموع | AV2: نصف العام | AW2: آخر العام | AX2: المجموع | AZ2: نصف العام | BA2: آخر العام | BB2: المجموع
L3: 25 | M3: 25 | N3: 50 | O3: 20 | P3: 20 | Q3: 40 | R3: 25 | S3: 25 | T3: 50 | U3: 20 | V3: 20 | W3: 40 | X3: 10 | Y3: 10 | Z3: 20 | AA3: 10 | AB3: 10 | AC3: 20 | AD3: 50 | AE3: 50 | AF3: 100 | AG3: 20 | AH3: 20 | AI3: 40 | AJ3: 30 | AK3: 30 | AL3: 60 | AM3: 25 | AN3: 25 | AO3: 50 | AP3: 25 | AQ3: 25 | AR3: 50 | AS3: 20 | AT3: 20 | AU3: 40 | AV3: 70 | AW3: 70 | AX3: 140 | AY3: =SUM(N3,Q3,T3,W3,Z3,AC3,AF3,AI3,AL3,AO3,AR3,AU3,AX3) -> 700 | AZ3: 10 | BA3: 10 | BB3: 20 | BH3: =COUNTIF(BH21:BH22,"عربي") -> 2 | BI3: =COUNTIF(BI21:BI22,"انجليزي") -> 2 | BJ3: =COUNTIF(BJ21:BJ22,"رياضيات") -> 2 | BK3: =COUNTIF(BK21:BK22,"فيزياء") -> 2 | BL3: =COUNTIF(BL21:BL22,"حاسب") -> 2 | BM3: =COUNTIF(BM21:BM22,"امن صناعي") -> 2 | BN3: =COUNTIF(BN21:BN22,"رسم فني") -> 2 | BO3: =COUNTIF(BO21:BO22,"تخطيط") -> 2 | BP3: =COUNTIF(BP21:BP22,"تكنولوجيا عمليات نظري") -> 2 | BQ3: =COUNTIF(BQ21:BQ22,"تاريخ الفنون") -> 2 | BR3: =COUNTIF(BR21:BR22,"تكنولوجيا الخامات") -> 2 | BS3: =COUNTIF(BS21:BS22,"تكنولوجيا الاجهزة") -> 2 | BT3: =COUNTIF(BT21:BT22,"تكنولوجيا العمليات عملي") -> 2 | BU3: =COUNTIF(BU21:BU22,"تربية دينية") -> 2
A4: م | B4: الرقم السري | C4: الرقم السري | D4: رقم الجلوس | E4: اســــــــــــــــــم الطالبة | F4: الرقم القومي | G4: تاريخ الميلاد | H4: الصناعة | I4: حالة القيد | J4: الديانة | K4: الجنسية | M4: 6.25 | N4: 25 | P4: 5 | Q4: 20 | S4: 6.25 | T4: 25 | V4: 5 | W4: 20 | Y4: 2.5 | Z4: 10 | AB4: 2.5 | AC4: 10 | AE4: 12.5 | AF4: 50 | AH4: 5 | AI4: 20 | AK4: 7.5 | AL4: 30 | AN4: 6.25 | AO4: 25 | AQ4: 6.25 | AR4: 25 | AT4: 5 | AU4: 20 | AW4: 17.5 | AX4: 70 | AY4: 350 | BA4: 2.5 | BB4: 10 | BH4: عربي | BI4: انجليزي | BJ4: رياضيات | BK4: فيزياء | BL4: حاسب | BM4: أمن صناعي | BN4: رسم قني | BO4: تخطيط | BP4: تك عمليات نظري | BQ4: تاريخ الفنون | BR4: تك الخامات | BS4: تك الاجهزة | BT4: تك العمليات عملي | BU4: تربية دينية | BW4: عربي | BX4: انجليزي | BY4: رياضيات | BZ4: فيزياء | CA4: حاسب | CB4: أمن صناعي | CC4: رسم قني | CD4: تخطيط | CE4: تك عمليات نظري | CF4: تاريخ الفنون | CG4: تك الخامات | CH4: تك الاجهزة | CI4: تك العمليات عملي | CJ4: تربية دينية
A5: 1 | C5: 1501 | D5: 2701 | E5: اسراء ابراهيم نبيل على محمد عمر | F5: 29909281800504 | G5: 1999-09-28 | H5: زخرفة قرار | I5: منقولة | J5: مسلمة | K5: مصرية | L5: 14 | N5: =SUM(L5:M5) -> 14 | O5: 9 | Q5: =SUM(O5:P5) -> 9 | R5: 3 | T5: =SUM(R5:S5) -> 3 | U5: 11.5 | W5: =SUM(U5:V5) -> 11.5 | X5: 5 | Z5: =SUM(X5:Y5) -> 5 | AA5: 5 | AC5: =SUM(AA5:AB5) -> 5 | AD5: 40 | AF5: =SUM(AD5:AE5) -> 40 | AG5: 5 | AI5: =AG5+AH5 -> 5 | AJ5: 27 | AL5: =SUM(AJ5:AK5) -> 27 | AM5: 13 | AO5: =SUM(AM5:AN5) -> 13 | AP5: 17 | AR5: =SUM(AP5+AQ5) -> 17 | AS5: 13 | AU5: =SUM(AS5:AT5) -> 13 | AV5: 58 | AX5: =SUM(AV5:AW5) -> 58 | AY5: 220.5 | AZ5: 7 | BB5: =SUM(AZ5:BA5) -> 7 | BC5: =IF(AND(CK5=0,CJ5=0),"ناجحة",IF(CK5>2,"راسبة","دور ثان")) -> راسبة | BD5: =CONCATENATE(BE5," - ",BF5) -> عربي - انجليزي - رياضيات - فيزياء - - حاسب - امن صناعي - رسم فني - تخطيط - تكنولوجيا عمليات نظري - تاريخ الفنون - تكنولوجيا الخامات - تكنولوجيا الاجهزة - تكنولوجيا العمليات عملي - تربية دينية | BE5: =CONCATENATE(BH5," - ",BI5," - ",BJ5," - ",BK5," - "," - ",BL5," - ",BM5," - ",BN5) -> عربي - انجليزي - رياضيات - فيزياء - - حاسب - امن صناعي - رسم فني | BF5: =CONCATENATE(BO5," - ",BP5," - ",BQ5," - ",BR5," - ",BS5," - ",BT5," - ",BU5) -> تخطيط - تكنولوجيا عمليات نظري - تاريخ الفنون - تكنولوجيا الخامات - تكنولوجيا الاجهزة - تكنولوجيا العمليات عملي - تربية دينية | BH5: =IF(BW5=1,"عربي","") -> عربي | BI5: =IF(BX5=1,"انجليزي","") -> انجليزي | BJ5: =IF(BY5=1,"رياضيات","") -> رياضيات | BK5: =IF(BZ5=1,"فيزياء","") -> فيزياء | BL5: =IF(CA5=1,"حاسب","") -> حاسب | BM5: =IF(CB5=1,"امن صناعي","") -> امن صناعي | BN5: =IF(CC5=1,"رسم فني","") -> رسم فني | BO5: =IF(CD5=1,"تخطيط","") -> تخطيط | BP5: =IF(CE5=1,"تكنولوجيا عمليات نظري","") -> تكنولوجيا عمليات نظري | BQ5: =IF(CF5=1,"تاريخ الفنون","") -> تاريخ الفنون | BR5: =IF(CG5=1,"تكنولوجيا الخامات","") -> تكنولوجيا الخامات | BS5: =IF(CH5=1,"تكنولوجيا الاجهزة","") -> تكنولوجيا الاجهزة | BT5: =IF(CI5=1,"تكنولوجيا العمليات عملي","") -> تكنولوجيا العمليات عملي | BU5: =IF(CJ5=1,"تربية دينية","") -> تربية دينية | BW5: =IF(OR(N5<$N$4,M5<$M$4,M5="غ"),1,0) -> 1 | BX5: =IF(OR(Q5<$Q$4,P5<$P$4,P5="غ"),1,0) -> 1 | BY5: =IF(OR(T5<$T$4,S5<$S$4,S5="غ"),1,0) -> 1 | BZ5: =IF(OR(W5<$W$4,V5<$V$4,V5="غ"),1,0) -> 1 | CA5: =IF(OR(Z5<$Z$4,Y5<$Y$4,Y5="غ"),1,0) -> 1 | CB5: =IF(OR(AC5<$AC$4,AB5<$AB$4,AB5="غ"),1,0) -> 1 | CC5: =IF(OR(AF5<$AF$4,AE5<$AE$4,AE5="غ"),1,0) -> 1 | CD5: =IF(OR(AI5<$AI$4,AH5<$AH$4,AH5="غ"),1,0) -> 1 | CE5: =IF(OR(AL5<$AL$4,AK5<$AK$4,AK5="غ"),1,0) -> 1 | CF5: =IF(OR(AO5<$AO$4,AN5<$AN$4,AN5="غ"),1,0) -> 1 | CG5: =IF(OR(AR5<$AR$4,AQ5<$AQ$4,AQ5="غ"),1,0) -> 1 | CH5: =IF(OR(AU5<$AU$4,AT5<$AT$4,AT5="غ"),1,0) -> 1 | CI5: =IF(OR(AX5<$AX$4,AW5<$AW$4,AW5="غ"),1,0) -> 1 | CJ5: =IF(OR(BB5<$BB$4,BA5<$BA$4,BA5="غ"),1,0) -> 1 | CK5: =SUM(BW5:CI5) -> 13
A6: 2 | C6: 1502 | D6: 2702 | E6: اسراء حسن فؤاد موسى محمد غراب | F6: 29612051801843 | G6: 1996-12-05 | H6: زخرفة قرار | I6: منقولة | J6: مسلمة | K6: مصرية | L6: 16.5 | N6: =SUM(L6:M6) -> 16.5 | O6: 10 | Q6: =SUM(O6:P6) -> 10 | R6: 9.5 | T6: =SUM(R6:S6) -> 9.5 | U6: 10 | W6: =SUM(U6:V6) -> 10 | X6: 5 | Z6: =SUM(X6:Y6) -> 5 | AA6: 7 | AC6: =SUM(AA6:AB6) -> 7 | AD6: 40 | AF6: =SUM(AD6:AE6) -> 40 | AG6: 3 | AI6: =AG6+AH6 -> 3 | AJ6: 26 | AL6: =SUM(AJ6:AK6) -> 26 | AM6: 17 | AO6: =SUM(AM6:AN6) -> 17 | AP6: 17 | AR6: =SUM(AP6+AQ6) -> 17 | AS6: 12 | AU6: =SUM(AS6:AT6) -> 12 | AV6: 55 | AX6: =SUM(AV6:AW6) -> 55 | AY6: =SUM(N6,Q6,T6,W6,Z6,AC6,AF6,AI6,AL6,AO6,AR6,AU6,AX6) -> 228 | AZ6: 6.5 | BB6: 6.5 | BC6: =IF(AND(CK6=0,CJ6=0),"ناجحة",IF(CK6>2,"راسبة","دور ثان")) -> راسبة | BD6: =CONCATENATE(BE6," - ",BF6) -> عربي - انجليزي - رياضيات - فيزياء - - حاسب - امن صناعي - رسم فني - تخطيط - تكنولوجيا عمليات نظري - تاريخ الفنون - تكنولوجيا الخامات - تكنولوجيا الاجهزة - تكنولوجيا العمليات عملي - تربية دينية | BE6: =CONCATENATE(BH6," - ",BI6," - ",BJ6," - ",BK6," - "," - ",BL6," - ",BM6," - ",BN6) -> عربي - انجليزي - رياضيات - فيزياء - - حاسب - امن صناعي - رسم فني | BF6: =CONCATENATE(BO6," - ",BP6," - ",BQ6," - ",BR6," - ",BS6," - ",BT6," - ",BU6) -> تخطيط - تكنولوجيا عمليات نظري - تاريخ الفنون - تكنولوجيا الخامات - تكنولوجيا الاجهزة - تكنولوجيا العمليات عملي - تربية دينية | BH6: =IF(BW6=1,"عربي","") -> عربي | BI6: =IF(BX6=1,"انجليزي","") -> انجليزي | BJ6: =IF(BY6=1,"رياضيات","") -> رياضيات | BK6: =IF(BZ6=1,"فيزياء","") -> فيزياء | BL6: =IF(CA6=1,"حاسب","") -> حاسب | BM6: =IF(CB6=1,"امن صناعي","") -> امن صناعي | BN6: =IF(CC6=1,"رسم فني","") -> رسم فني | BO6: =IF(CD6=1,"تخطيط","") -> تخطيط | BP6: =IF(CE6=1,"تكنولوجيا عمليات نظري","") -> تكنولوجيا عمليات نظري | BQ6: =IF(CF6=1,"تاريخ الفنون","") -> تاريخ الفنون | BR6: =IF(CG6=1,"تكنولوجيا الخامات","") -> تكنولوجيا الخامات | BS6: =IF(CH6=1,"تكنولوجيا الاجهزة","") -> تكنولوجيا الاجهزة | BT6: =IF(CI6=1,"تكنولوجيا العمليات عملي","") -> تكنولوجيا العمليات عملي | BU6: =IF(CJ6=1,"تربية دينية","") -> تربية دينية | BW6: =IF(OR(N6<$N$4,M6<$M$4,M6="غ"),1,0) -> 1 | BX6: =IF(OR(Q6<$Q$4,P6<$P$4,P6="غ"),1,0) -> 1 | BY6: =IF(OR(T6<$T$4,S6<$S$4,S6="غ"),1,0) -> 1 | BZ6: =IF(OR(W6<$W$4,V6<$V$4,V6="غ"),1,0) -> 1 | CA6: =IF(OR(Z6<$Z$4,Y6<$Y$4,Y6="غ"),1,0) -> 1 | CB6: =IF(OR(AC6<$AC$4,AB6<$AB$4,AB6="غ"),1,0) -> 1 | CC6: =IF(OR(AF6<$AF$4,AE6<$AE$4,AE6="غ"),1,0) -> 1 | CD6: =IF(OR(AI6<$AI$4,AH6<$AH$4,AH6="غ"),1,0) -> 1 | CE6: =IF(OR(AL6<$AL$4,AK6<$AK$4,AK6="غ"),1,0) -> 1 | CF6: =IF(OR(AO6<$AO$4,AN6<$AN$4,AN6="غ"),1,0) -> 1 | CG6: =IF(OR(AR6<$AR$4,AQ6<$AQ$4,AQ6="غ"),1,0) -> 1 | CH6: =IF(OR(AU6<$AU$4,AT6<$AT$4,AT6="غ"),1,0) -> 1 | CI6: =IF(OR(AX6<$AX$4,AW6<$AW$4,AW6="غ"),1,0) -> 1 | CJ6: =IF(OR(BB6<$BB$4,BA6<$BA$4,BA6="غ"),1,0) -> 1 | CK6: =SUM(BW6:CI6) -> 13
A7: 3 | C7: 1503 | D7: 2703 | E7: اسراء حسين بسيوني سلامة | F7: 30101151802201 | G7: 2001-01-15 | H7: زخرفة قرار | I7: منقولة | J7: مسلمة | K7: مصرية | L7: 14.5 | N7: 14.5 | O7: 9 | Q7: 9 | R7: 19.5 | T7: 19.5 | U7: 15 | W7: 15 | X7: 5 | Z7: 5 | AA7: 7 | AC7: 7 | AD7: 40 | AF7: 40 | AG7: 10 | AI7: 10 | AJ7: 25 | AL7: 25 | AM7: 19 | AO7: 19 | AP7: 17 | AR7: 17 | AS7: 11 | AU7: 11 | AV7: 56 | AX7: 56 | AY7: 248 | AZ7: 6.5 | BB7: 6.5 | BC7: راسبة | BD7: عربي - انجليزي - رياضيات - فيزياء - - حاسب - امن صناعي - رسم فني - تخطيط - تكنولوجيا عمليات نظري - تاريخ الفنون - تكنولوجيا الخامات - تكنولوجيا الاجهزة - تكنولوجيا العمليات عملي - تربية دينية | BE7: عربي - انجليزي - رياضيات - فيزياء - - حاسب - امن صناعي - رسم فني | BF7: تخطيط - تكنولوجيا عمليات نظري - تاريخ الفنون - تكنولوجيا الخامات - تكنولوجيا الاجهزة - تكنولوجيا العمليات عملي - تربية دينية | BH7: عربي | BI7: انجليزي | BJ7: رياضيات | BK7: فيزياء | BL7: حاسب | BM7: امن صناعي | BN7: رسم فني | BO7: تخطيط | BP7: تكنولوجيا عمليات نظري | BQ7: تاريخ الفنون | BR7: تكنولوجيا الخامات | BS7: تكنولوجيا الاجهزة | BT7: تكنولوجيا العمليات عملي | BU7: تربية دينية | BW7: 1 | BX7: 1 | BY7: 1 | BZ7: 1 | CA7: 1 | CB7: 1 | CC7: 1 | CD7: 1 | CE7: 1 | CF7: 1 | CG7: 1 | CH7: 1 | CI7: 1 | CJ7: 1 | CK7: 13
A8: 4 | C8: 1504 | D8: 2704 | E8: اسراء محمد مسعود السيد ابراهيم | F8: 30102141800282 | G8: 2001-02-14 | H8: زخرفة قرار | I8: منقولة | J8: مسلمة | K8: مصرية | L8: 14.5 | N8: 14.5 | O8: 10 | Q8: 10 | R8: 17 | T8: 17 | U8: 13.5 | W8: 13.5 | X8: 5 | Z8: 5 | AA8: 5 | AC8: 5 | AD8: 50 | AF8: 50 | AG8: 11 | AI8: 11 | AJ8: 24 | AL8: 24 | AM8: 19 | AO8: 19 | AP8: 19 | AR8: 19 | AS8: 11 | AU8: 11 | AV8: 57 | AX8: 57 | AY8: 256 | AZ8: 8 | BB8: 8 | BC8: راسبة | BD8: عربي - انجليزي - رياضيات - فيزياء - - حاسب - امن صناعي - رسم فني - تخطيط - تكنولوجيا عمليات نظري - تاريخ الفنون - تكنولوجيا الخامات - تكنولوجيا الاجهزة - تكنولوجيا العمليات عملي - تربية دينية | BE8: عربي - انجليزي - رياضيات - فيزياء - - حاسب - امن صناعي - رسم فني | BF8: تخطيط - تكنولوجيا عمليات نظري - تاريخ الفنون - تكنولوجيا الخامات - تكنولوجيا الاجهزة - تكنولوجيا العمليات عملي - تربية دينية | BH8: عربي | BI8: انجليزي | BJ8: رياضيات | BK8: فيزياء | BL8: حاسب | BM8: امن صناعي | BN8: رسم فني | BO8: تخطيط | BP8: تكنولوجيا عمليات نظري | BQ8: تاريخ الفنون | BR8: تكنولوجيا الخامات | BS8: تكنولوجيا الاجهزة | BT8: تكنولوجيا العمليات عملي | BU8: تربية دينية | BW8: 1 | BX8: 1 | BY8: 1 | BZ8: 1 | CA8: 1 | CB8: 1 | CC8: 1 | CD8: 1 | CE8: 1 | CF8: 1 | CG8: 1 | CH8: 1 | CI8: 1 | CJ8: 1 | CK8: 13
A9: 5 | C9: 1505 | D9: 2705 | E9: اية محمد خليفة محمود البنا | F9: 29611241801827 | G9: 1996-11-24 | H9: زخرفة قرار | I9: منقولة | J9: مسلمة | K9: مصرية | L9: 12 | N9: 12 | O9: 7 | Q9: 7 | R9: 16 | T9: 16 | U9: 13.5 | W9: 13.5 | X9: 5 | Z9: 5 | AA9: 5 | AC9: 5 | AD9: 35 | AF9: 35 | AG9: 10 | AI9: 10 | AJ9: 24 | AL9: 24 | AM9: 18 | AO9: 18 | AP9: 18 | AR9: 18 | AS9: 11 | AU9: 11 | AV9: 54 | AX9: 54 | AY9: 228.5 | AZ9: 6 | BB9: 6 | BC9: راسبة | BD9: عربي - انجليزي - رياضيات - فيزياء - - حاسب - امن صناعي - رسم فني - تخطيط - تكنولوجيا عمليات نظري - تاريخ الفنون - تكنولوجيا الخامات - تكنولوجيا الاجهزة - تكنولوجيا العمليات عملي - تربية دينية | BE9: عربي - انجليزي - رياضيات - فيزياء - - حاسب - امن صناعي - رسم فني | BF9: تخطيط - تكنولوجيا عمليات نظري - تاريخ الفنون - تكنولوجيا الخامات - تكنولوجيا الاجهزة - تكنولوجيا العمليات عملي - تربية دينية | BH9: عربي | BI9: انجليزي | BJ9: رياضيات | BK9: فيزياء | BL9: حاسب | BM9: امن صناعي | BN9: رسم فني | BO9: تخطيط | BP9: تكنولوجيا عمليات نظري | BQ9: تاريخ الفنون | BR9: تكنولوجيا الخامات | BS9: تكنولوجيا الاجهزة | BT9: تكنولوجيا العمليات عملي | BU9: تربية دينية | BW9: 1 | BX9: 1 | BY9: 1 | BZ9: 1 | CA9: 1 | CB9: 1 | CC9: 1 | CD9: 1 | CE9: 1 | CF9: 1 | CG9: 1 | CH9: 1 | CI9: 1 | CJ9: 1 | CK9: 13
A10: 6 | C10: 1506 | D10: 2706 | E10: ايمان ابراهيم محمود الحناوي | F10: 29903131800761 | G10: 1999-03-13 | H10: زخرفة قرار | I10: منقولة | J10: مسلمة | K10: مصرية | L10: 14 | N10: 14 | O10: 8.5 | Q10: 8.5 | R10: 18 | T10: 18 | U10: 13.5 | W10: 13.5 | X10: 5 | Z10: 5 | AA10: 5 | AC10: 5 | AD10: 40 | AF10: 40 | AG10: 9 | AI10: 9 | AJ10: 23 | AL10: 23 | AM10: 18 | AO10: 18 | AP10: 19 | AR10: 19 | AS10: 11 | AU10: 11 | AV10: 57 | AX10: 57 | AY10: 241 | AZ10: 8 | BB10: 8 | BC10: راسبة | BD10: عربي - انجليزي - رياضيات - فيزياء - - حاسب - امن صناعي - رسم فني - تخطيط - تكنولوجيا عمليات نظري - تاريخ الفنون - تكنولوجيا الخامات - تكنولوجيا الاجهزة - تكنولوجيا العمليات عملي - تربية دينية | BE10: عربي - انجليزي - رياضيات - فيزياء - - حاسب - امن صناعي - رسم فني | BF10: تخطيط - تكنولوجيا عمليات نظري - تاريخ الفنون - تكنولوجيا الخامات - تكنولوجيا الاجهزة - تكنولوجيا العمليات عملي - تربية دينية | BH10: عربي | BI10: انجليزي | BJ10: رياضيات | BK10: فيزياء | BL10: حاسب | BM10: امن صناعي | BN10: رسم فني | BO10: تخطيط | BP10: تكنولوجيا عمليات نظري | BQ10: تاريخ الفنون | BR10: تكنولوجيا الخامات | BS10: تكنولوجيا الاجهزة | BT10: تكنولوجيا العمليات عملي | BU10: تربية دينية | BW10: 1 | BX10: 1 | BY10: 1 | BZ10: 1 | CA10: 1 | CB10: 1 | CC10: 1 | CD10: 1 | CE10: 1 | CF10: 1 | CG10: 1 | CH10: 1 | CI10: 1 | CJ10: 1 | CK10: 13
A11: 7 | C11: 1507 | D11: 2707 | E11: بسمة محمد عبد الفتاح سعد | F11: 30002121803108 | G11: 2000-02-12 | H11: زخرفة قرار | I11: منقولة | J11: مسلمة | K11: مصرية | L11: 14.5 | N11: 14.5 | O11: 10.5 | Q11: 10.5 | R11: 16.5 | T11: 16.5 | U11: 13.5 | W11: 13.5 | X11: 5 | Z11: 5 | AA11: 5 | AC11: 5 | AD11: 35 | AF11: 35 | AG11: 10 | AI11: 10 | AJ11: 25 | AL11: 25 | AM11: 19 | AO11: 19 | AP11: 19 | AR11: 19 | AS11: 11 | AU11: 11 | AV11: 60 | AX11: 60 | AY11: 244 | AZ11: 8 | BB11: 8 | BC11: راسبة | BD11: عربي - انجليزي - رياضيات - فيزياء - - حاسب - امن صناعي - رسم فني - تخطيط - تكنولوجيا عمليات نظري - تاريخ الفنون - تكنولوجيا الخامات - تكنولوجيا الاجهزة - تكنولوجيا العمليات عملي - تربية دينية | BE11: عربي - انجليزي - رياضيات - فيزياء - - حاسب - امن صناعي - رسم فني | BF11: تخطيط - تكنولوجيا عمليات نظري - تاريخ الفنون - تكنولوجيا الخامات - تكنولوجيا الاجهزة - تكنولوجيا العمليات عملي - تربية دينية | BH11: عربي | BI11: انجليزي | BJ11: رياضيات | BK11: فيزياء | BL11: حاسب | BM11: امن صناعي | BN11: رسم فني | BO11: تخطيط | BP11: تكنولوجيا عمليات نظري | BQ11: تاريخ الفنون | BR11: تكنولوجيا الخامات | BS11: تكنولوجيا الاجهزة | BT11: تكنولوجيا العمليات عملي | BU11: تربية دينية | BW11: 1 | BX11: 1 | BY11: 1 | BZ11: 1 | CA11: 1 | CB11: 1 | CC11: 1 | CD11: 1 | CE11: 1 | CF11: 1 | CG11: 1 | CH11: 1 | CI11: 1 | CJ11: 1 | CK11: 13
A12: 8 | C12: 1508 | D12: 2708 | E12: حبيبة محمد شحاته على حسن | F12: 30011061800685 | G12: 2000-11-06 | H12: زخرفة قرار | I12: منقولة | J12: مسلمة | K12: مصرية | L12: 14.5 | N12: 14.5 | O12: 13 | Q12: 13 | R12: 17 | T12: 17 | U12: 13.5 | W12: 13.5 | X12: 5 | Z12: 5 | AA12: 6 | AC12: 6 | AD12: 40 | AF12: 40 | AG12: 10 | AI12: 10 | AJ12: 21 | AL12: 21 | AM12: 18 | AO12: 18 | AP12: 19 | AR12: 19 | AS12: 12 | AU12: 12 | AV12: 56 | AX12: 56 | AY12: 245 | AZ12: 7.5 | BB12: 7.5 | BC12: راسبة | BD12: عربي - انجليزي - رياضيات - فيزياء - - حاسب - امن صناعي - رسم فني - تخطيط - تكنولوجيا عمليات نظري - تاريخ الفنون - تكنولوجيا الخامات - تكنولوجيا الاجهزة - تكنولوجيا العمليات عملي - تربية دينية | BE12: عربي - انجليزي - رياضيات - فيزياء - - حاسب - امن صناعي - رسم فني | BF12: تخطيط - تكنولوجيا عمليات نظري - تاريخ الفنون - تكنولوجيا الخامات - تكنولوجيا الاجهزة - تكنولوجيا العمليات عملي - تربية دينية | BH12: عربي | BI12: انجليزي | BJ12: رياضيات | BK12: فيزياء | BL12: حاسب | BM12: امن صناعي | BN12: رسم فني | BO12: تخطيط | BP12: تكنولوجيا عمليات نظري | BQ12: تاريخ الفنون | BR12: تكنولوجيا الخامات | BS12: تكنولوجيا الاجهزة | BT12: تكنولوجيا العمليات عملي | BU12: تربية دينية | BW12: 1 | BX12: 1 | BY12: 1 | BZ12: 1 | CA12: 1 | CB12: 1 | CC12: 1 | CD12: 1 | CE12: 1 | CF12: 1 | CG12: 1 | CH12: 1 | CI12: 1 | CJ12: 1 | CK12: 13
A13: 9 | C13: 1509 | D13: 2709 | E13: حنان سيد احمد مصطفى سلطان | F13: 26711271803623 | G13: 1967-11-27 | H13: زخرفة قرار | I13: منقولة | J13: مسلمة | K13: مصرية | L13: 13.5 | N13: 13.5 | O13: 7.5 | Q13: 7.5 | R13: 13 | T13: 13 | U13: 12.5 | W13: 12.5 | X13: 5 | Z13: 5 | AA13: 7 | AC13: 7 | AD13: 35 | AF13: 35 | AG13: 7 | AI13: 7 | AJ13: 20 | AL13: 20 | AM13: 19 | AO13: 19 | AP13: 15 | AR13: 15 | AS13: 11 | AU13: 11 | AV13: 52 | AX13: 52 | AY13: 217.5 | AZ13: 7 | BB13: 7 | BC13: راسبة | BD13: عربي - انجليزي - رياضيات - فيزياء - - حاسب - امن صناعي - رسم فني - تخطيط - تكنولوجيا عمليات نظري - تاريخ الفنون - تكنولوجيا الخامات - تكنولوجيا الاجهزة - تكنولوجيا العمليات عملي - تربية دينية | BE13: عربي - انجليزي - رياضيات - فيزياء - - حاسب - امن صناعي - رسم فني | BF13: تخطيط - تكنولوجيا عمليات نظري - تاريخ الفنون - تكنولوجيا الخامات - تكنولوجيا الاجهزة - تكنولوجيا العمليات عملي - تربية دينية | BH13: عربي | BI13: انجليزي | BJ13: رياضيات | BK13: فيزياء | BL13: حاسب | BM13: امن صناعي | BN13: رسم فني | BO13: تخطيط | BP13: تكنولوجيا عمليات نظري | BQ13: تاريخ الفنون | BR13: تكنولوجيا الخامات | BS13: تكنولوجيا الاجهزة | BT13: تكنولوجيا العمليات عملي | BU13: تربية دينية | BW13: 1 | BX13: 1 | BY13: 1 | BZ13: 1 | CA13: 1 | CB13: 1 | CC13: 1 | CD13: 1 | CE13: 1 | CF13: 1 | CG13: 1 | CH13: 1 | CI13: 1 | CJ13: 1 | CK13: 13
A14: 10 | C14: 1510 | D14: 2710 | E14: دينا احمد فرجاني خير واقد | F14: 29808171801466 | G14: 1998-08-17 | H14: زخرفة قرار | I14: منقولة | J14: مسلمة | K14: مصرية | L14: 11.5 | N14: 11.5 | O14: 13.5 | Q14: 13.5 | R14: 3 | T14: 3 | U14: 13.5 | W14: 13.5 | X14: 5 | Z14: 5 | AA14: 7 | AC14: 7 | AD14: 40 | AF14: 40 | AG14: 8 | AI14: 8 | AJ14: 16 | AL14: 16 | AM14: 14 | AO14: 14 | AP14: 18 | AR14: 18 | AS14: 11 | AU14: 11 | AV14: 56 | AX14: 56 | AY14: 216.5 | AZ14: 7.5 | BB14: 7.5 | BC14: راسبة | BD14: عربي - انجليزي - رياضيات - فيزياء - - حاسب - امن صناعي - رسم فني - تخطيط - تكنولوجيا عمليات نظري - تاريخ الفنون - تكنولوجيا الخامات - تكنولوجيا الاجهزة - تكنولوجيا العمليات عملي - تربية دينية | BE14: عربي - انجليزي - رياضيات - فيزياء - - حاسب - امن صناعي - رسم فني | BF14: تخطيط - تكنولوجيا عمليات نظري - تاريخ الفنون - تكنولوجيا الخامات - تكنولوجيا الاجهزة - تكنولوجيا العمليات عملي - تربية دينية | BH14: عربي | BI14: انجليزي | BJ14: رياضيات | BK14: فيزياء | BL14: حاسب | BM14: امن صناعي | BN14: رسم فني | BO14: تخطيط | BP14: تكنولوجيا عمليات نظري | BQ14: تاريخ الفنون | BR14: تكنولوجيا الخامات | BS14: تكنولوجيا الاجهزة | BT14: تكنولوجيا العمليات عملي | BU14: تربية دينية | BW14: 1 | BX14: 1 | BY14: 1 | BZ14: 1 | CA14: 1 | CB14: 1 | CC14: 1 | CD14: 1 | CE14: 1 | CF14: 1 | CG14: 1 | CH14: 1 | CI14: 1 | CJ14: 1 | CK14: 13
A15: 11 | C15: 1511 | D15: 2711 | E15: ريهام منصور محمد حسن شعيشع | F15: 29711141800445 | G15: 1997-11-14 | H15: زخرفة قرار | I15: منقولة | J15: مسلمة | K15: مصرية | L15: 11.5 | N15: 11.5 | O15: 13.5 | Q15: 13.5 | R15: 3 | T15: 3 | U15: 12 | W15: 12 | X15: 5 | Z15: 5 | AA15: 7 | AC15: 7 | AD15: 40 | AF15: 40 | AG15: 12 | AI15: 12 | AJ15: 19 | AL15: 19 | AM15: 17 | AO15: 17 | AP15: 19 | AR15: 19 | AS15: 11 | AU15: 11 | AV15: 60 | AX15: 60 | AY15: 230 | AZ15: 8.5 | BB15: 8.5 | BC15: راسبة | BD15: عربي - انجليزي - رياضيات - فيزياء - - حاسب - امن صناعي - رسم فني - تخطيط - تكنولوجيا عمليات نظري - تاريخ الفنون - تكنولوجيا الخامات - تكنولوجيا الاجهزة - تكنولوجيا العمليات عملي - تربية دينية | BE15: عربي - انجليزي - رياضيات - فيزياء - - حاسب - امن صناعي - رسم فني | BF15: تخطيط - تكنولوجيا عمليات نظري - تاريخ الفنون - تكنولوجيا الخامات - تكنولوجيا الاجهزة - تكنولوجيا العمليات عملي - تربية دينية | BH15: عربي | BI15: انجليزي | BJ15: رياضيات | BK15: فيزياء | BL15: حاسب | BM15: امن صناعي | BN15: رسم فني | BO15: تخطيط | BP15: تكنولوجيا عمليات نظري | BQ15: تاريخ الفنون | BR15: تكنولوجيا الخامات | BS15: تكنولوجيا الاجهزة | BT15: تكنولوجيا العمليات عملي | BU15: تربية دينية | BW15: 1 | BX15: 1 | BY15: 1 | BZ15: 1 | CA15: 1 | CB15: 1 | CC15: 1 | CD15: 1 | CE15: 1 | CF15: 1 | CG15: 1 | CH15: 1 | CI15: 1 | CJ15: 1 | CK15: 13
A16: 12 | C16: 1512 | D16: 2712 | E16: سارة عبد القادر ابراهيم على حسن | F16: 29303171800104 | G16: 1993-03-17 | H16: زخرفة قرار | I16: منقولة | J16: مسلمة | K16: مصرية | L16: 13 | N16: 13 | O16: 14 | Q16: 14 | R16: 3 | T16: 3 | U16: 14.5 | W16: 14.5 | X16: 5 | Z16: 5 | AA16: 8 | AC16: 8 | AD16: 35 | AF16: 35 | AG16: 12 | AI16: 12 | AJ16: 18 | AL16: 18 | AM16: 18 | AO16: 18 | AP16: 18 | AR16: 18 | AS16: 9 | AU16: 9 | AV16: 57 | AX16: 57 | AY16: 224.5 | AZ16: 8 | BB16: 8 | BC16: راسبة | BD16: عربي - انجليزي - رياضيات - فيزياء - - حاسب - امن صناعي - رسم فني - تخطيط - تكنولوجيا عمليات نظري - تاريخ الفنون - تكنولوجيا الخامات - تكنولوجيا الاجهزة - تكنولوجيا العمليات عملي - تربية دينية | BE16: عربي - انجليزي - رياضيات - فيزياء - - حاسب - امن صناعي - رسم فني | BF16: تخطيط - تكنولوجيا عمليات نظري - تاريخ الفنون - تكنولوجيا الخامات - تكنولوجيا الاجهزة - تكنولوجيا العمليات عملي - تربية دينية | BH16: عربي | BI16: انجليزي | BJ16: رياضيات | BK16: فيزياء | BL16: حاسب | BM16: امن صناعي | BN16: رسم فني | BO16: تخطيط | BP16: تكنولوجيا عمليات نظري | BQ16: تاريخ الفنون | BR16: تكنولوجيا الخامات | BS16: تكنولوجيا الاجهزة | BT16: تكنولوجيا العمليات عملي | BU16: تربية دينية | BW16: 1 | BX16: 1 | BY16: 1 | BZ16: 1 | CA16: 1 | CB16: 1 | CC16: 1 | CD16: 1 | CE16: 1 | CF16: 1 | CG16: 1 | CH16: 1 | CI16: 1 | CJ16: 1 | CK16: 13
A17: 13 | C17: 1513 | D17: 2713 | E17: سلوى سعيد محمد عبد الحليم | F17: 27702091803123 | G17: 1998-09-19 | H17: زخرفة قرار | I17: منقولة | J17: مسلمة | K17: مصرية | L17: 15 | N17: 15 | O17: 10 | Q17: 10 | R17: صفر | T17: 0 | U17: 13 | W17: 13 | X17: 5 | Z17: 5 | AA17: 7 | AC17: 7 | AD17: 35 | AF17: 35 | AG17: 8 | AI17: 8 | AJ17: 21 | AL17: 21 | AM17: 18 | AO17: 18 | AP17: 16 | AR17: 16 | AS17: 11 | AU17: 11 | AV17: 54 | AX17: 54 | AY17: 213 | AZ17: 8 | BB17: 8 | BC17: راسبة | BD17: عربي - انجليزي - رياضيات - فيزياء - - حاسب - امن صناعي - رسم فني - تخطيط - تكنولوجيا عمليات نظري - تاريخ الفنون - تكنولوجيا الخامات - تكنولوجيا الاجهزة - تكنولوجيا العمليات عملي - تربية دينية | BE17: عربي - انجليزي - رياضيات - فيزياء - - حاسب - امن صناعي - رسم فني | BF17: تخطيط - تكنولوجيا عمليات نظري - تاريخ الفنون - تكنولوجيا الخامات - تكنولوجيا الاجهزة - تكنولوجيا العمليات عملي - تربية دينية | BH17: عربي | BI17: انجليزي | BJ17: رياضيات | BK17: فيزياء | BL17: حاسب | BM17: امن صناعي | BN17: رسم فني | BO17: تخطيط | BP17: تكنولوجيا عمليات نظري | BQ17: تاريخ الفنون | BR17: تكنولوجيا الخامات | BS17: تكنولوجيا الاجهزة | BT17: تكنولوجيا العمليات عملي | BU17: تربية دينية | BW17: 1 | BX17: 1 | BY17: 1 | BZ17: 1 | CA17: 1 | CB17: 1 | CC17: 1 | CD17: 1 | CE17: 1 | CF17: 1 | CG17: 1 | CH17: 1 | CI17: 1 | CJ17: 1 | CK17: 13
A18: 14 | C18: 1514 | D18: 2714 | E18: سماء محمد عبده ابراهيم زعتر | F18: 29804091800781 | G18: 1998-04-09 | H18: زخرفة قرار | I18: منقولة | J18: مسلمة | K18: مصرية | L18: 13.5 | N18: 13.5 | O18: 12 | Q18: 12 | R18: 10 | T18: 10 | U18: 14 | W18: 14 | X18: 5 | Z18: 5 | AA18: 7 | AC18: 7 | AD18: 35 | AF18: 35 | AG18: 8 | AI18: 8 | AJ18: 16 | AL18: 16 | AM18: 16 | AO18: 16 | AP18: 17 | AR18: 17 | AS18: 8 | AU18: 8 | AV18: 52 | AX18: 52 | AY18: 213.5 | AZ18: 8 | BB18: 8 | BC18: راسبة | BD18: عربي - انجليزي - رياضيات - فيزياء - - حاسب - امن صناعي - رسم فني - تخطيط - تكنولوجيا عمليات نظري - تاريخ الفنون - تكنولوجيا الخامات - تكنولوجيا الاجهزة - تكنولوجيا العمليات عملي - تربية دينية | BE18: عربي - انجليزي - رياضيات - فيزياء - - حاسب - امن صناعي - رسم فني | BF18: تخطيط - تكنولوجيا عمليات نظري - تاريخ الفنون - تكنولوجيا الخامات - تكنولوجيا الاجهزة - تكنولوجيا العمليات عملي - تربية دينية | BH18: عربي | BI18: انجليزي | BJ18: رياضيات | BK18: فيزياء | BL18: حاسب | BM18: امن صناعي | BN18: رسم فني | BO18: تخطيط | BP18: تكنولوجيا عمليات نظري | BQ18: تاريخ الفنون | BR18: تكنولوجيا الخامات | BS18: تكنولوجيا الاجهزة | BT18: تكنولوجيا العمليات عملي | BU18: تربية دينية | BW18: 1 | BX18: 1 | BY18: 1 | BZ18: 1 | CA18: 1 | CB18: 1 | CC18: 1 | CD18: 1 | CE18: 1 | CF18: 1 | CG18: 1 | CH18: 1 | CI18: 1 | CJ18: 1 | CK18: 13
A19: 15 | C19: 1515 | D19: 2715 | E19: سهام رضا احمد محمد مصطفى | F19: 29402160202866 | G19: 1994-02-16 | H19: زخرفة قرار | I19: منقولة | J19: مسلمة | K19: مصرية | L19: 14.5 | N19: 14.5 | O19: 16.5 | Q19: 16.5 | R19: 8 | T19: 8 | U19: 14.5 | W19: 14.5 | X19: 5 | Z19: 5 | AA19: 8 | AC19: 8 | AD19: 35 | AF19: 35 | AG19: 8 | AI19: 8 | AJ19: 16 | AL19: 16 | AM19: 18 | AO19: 18 | AP19: 19 | AR19: 19 | AS19: 8 | AU19: 8 | AV19: 53 | AX19: 53 | AY19: 223.5 | AZ19: 7.5 | BB19: 7.5 | BC19: راسبة | BD19: عربي - انجليزي - رياضيات - فيزياء - - حاسب - امن صناعي - رسم فني - تخطيط - تكنولوجيا عمليات نظري - تاريخ الفنون - تكنولوجيا الخامات - تكنولوجيا الاجهزة - تكنولوجيا العمليات عملي - تربية دينية | BE19: عربي - انجليزي - رياضيات - فيزياء - - حاسب - امن صناعي - رسم فني | BF19: تخطيط - تكنولوجيا عمليات نظري - تاريخ الفنون - تكنولوجيا الخامات - تكنولوجيا الاجهزة - تكنولوجيا العمليات عملي - تربية دينية | BH19: عربي | BI19: انجليزي | BJ19: رياضيات | BK19: فيزياء | BL19: حاسب | BM19: امن صناعي | BN19: رسم فني | BO19: تخطيط | BP19: تكنولوجيا عمليات نظري | BQ19: تاريخ الفنون | BR19: تكنولوجيا الخامات | BS19: تكنولوجيا الاجهزة | BT19: تكنولوجيا العمليات عملي | BU19: تربية دينية | BW19: 1 | BX19: 1 | BY19: 1 | BZ19: 1 | CA19: 1 | CB19: 1 | CC19: 1 | CD19: 1 | CE19: 1 | CF19: 1 | CG19: 1 | CH19: 1 | CI19: 1 | CJ19: 1 | CK19: 13
A20: 16 | C20: 1516 | D20: 2716 | E20: سومه عبد الغني فتحي عبد الغني | F20: 29002041802903 | G20: 1990-02-04 | H20: زخرفة قرار | I20: منقولة | J20: مسلمة | K20: مصرية | L20: 9.5 | N20: 9.5 | O20: 8 | Q20: 8 | R20: 6 | T20: 6 | U20: 15 | W20: 15 | X20: 7 | Z20: 7 | AA20: 7 | AC20: 7 | AD20: 35 | AF20: 35 | AG20: 9 | AI20: 9 | AJ20: 16 | AL20: 16 | AM20: 18 | AO20: 18 | AP20: 17 | AR20: 17 | AS20: 9 | AU20: 9 | AV20: 53 | AX20: 53 | AY20: 209.5 | AZ20: 6 | BB20: 6 | BC20: راسبة | BD20: عربي - انجليزي - رياضيات - فيزياء - - حاسب - امن صناعي - رسم فني - تخطيط - تكنولوجيا عمليات نظري - تاريخ الفنون - تكنولوجيا الخامات - تكنولوجيا الاجهزة - تكنولوجيا العمليات عملي - تربية دينية | BE20: عربي - انجليزي - رياضيات - فيزياء - - حاسب - امن صناعي - رسم فني | BF20: تخطيط - تكنولوجيا عمليات نظري - تاريخ الفنون - تكنولوجيا الخامات - تكنولوجيا الاجهزة - تكنولوجيا العمليات عملي - تربية دينية | BH20: عربي | BI20: انجليزي | BJ20: رياضيات | BK20: فيزياء | BL20: حاسب | BM20: امن صناعي | BN20: رسم فني | BO20: تخطيط | BP20: تكنولوجيا عمليات نظري | BQ20: تاريخ الفنون | BR20: تكنولوجيا الخامات | BS20: تكنولوجيا الاجهزة | BT20: تكنولوجيا العمليات عملي | BU20: تربية دينية | BW20: 1 | BX20: 1 | BY20: 1 | BZ20: 1 | CA20: 1 | CB20: 1 | CC20: 1 | CD20: 1 | CE20: 1 | CF20: 1 | CG20: 1 | CH20: 1 | CI20: 1 | CJ20: 1 | CK20: 13
A21: 17 | C21: 1517 | D21: 2717 | E21: شرين عادل محمد احمد حسن | F21: 29905091800308 | G21: 1999-05-09 | H21: زخرفة قرار | I21: منقولة | J21: مسلمة | K21: مصرية | L21: 10 | N21: 10 | O21: 14.5 | Q21: 14.5 | R21: 5 | T21: 5 | U21: 13 | W21: 13 | X21: 7 | Z21: 7 | AA21: 7 | AC21: 7 | AD21: 35 | AF21: 35 | AG21: 9 | AI21: 9 | AJ21: 15 | AL21: 15 | AM21: 14 | AO21: 14 | AP21: 16 | AR21: 16 | AS21: 8 | AU21: 8 | AV21: 52 | AX21: 52 | AY21: 205.5 | AZ21: 7.5 | BB21: 7.5 | BC21: راسبة | BD21: عربي - انجليزي - رياضيات - فيزياء - - حاسب - امن صناعي - رسم فني - تخطيط - تكنولوجيا عمليات نظري - تاريخ الفنون - تكنولوجيا الخامات - تكنولوجيا الاجهزة - تكنولوجيا العمليات عملي - تربية دينية | BE21: عربي - انجليزي - رياضيات - فيزياء - - حاسب - امن صناعي - رسم فني | BF21: تخطيط - تكنولوجيا عمليات نظري - تاريخ الفنون - تكنولوجيا الخامات - تكنولوجيا الاجهزة - تكنولوجيا العمليات عملي - تربية دينية | BH21: عربي | BI21: انجليزي | BJ21: رياضيات | BK21: فيزياء | BL21: حاسب | BM21: امن صناعي | BN21: رسم فني | BO21: تخطيط | BP21: تكنولوجيا عمليات نظري | BQ21: تاريخ الفنون | BR21: تكنولوجيا الخامات | BS21: تكنولوجيا الاجهزة | BT21: تكنولوجيا العمليات عملي | BU21: تربية دينية | BW21: 1 | BX21: 1 | BY21: 1 | BZ21: 1 | CA21: 1 | CB21: 1 | CC21: 1 | CD21: 1 | CE21: 1 | CF21: 1 | CG21: 1 | CH21: 1 | CI21: 1 | CJ21: 1 | CK21: 13
A22: 18 | C22: 1518 | D22: 2718 | E22: شيماء جمال سعيد ابراهيم | F22: 29905011810723 | G22: 1999-05-01 | H22: زخرفة قرار | I22: منقولة | J22: مسلمة | K22: مصرية | L22: غ | N22: 0 | O22: غ | Q22: 0 | R22: غ | T22: 0 | U22: غ | W22: 0 | X22: 7 | Z22: 7 | AA22: غ | AC22: 0 | AD22: غ | AF22: 0 | AG22: غ | AI22: =SUM(AG22:AH22) -> 0 | AJ22: غ | AL22: 0 | AM22: غ | AO22: 0 | AP22: غ | AR22: =SUM(AP22:AQ22) -> 0 | AS22: غ | AU22: 0 | AV22: غ | AX22: 0 | AY22: 7 | AZ22: غـ | BB22: 0 | BC22: راسبة | BD22: عربي - انجليزي - رياضيات - فيزياء - - حاسب - امن صناعي - رسم فني - تخطيط - تكنولوجيا عمليات نظري - تاريخ الفنون - تكنولوجيا الخامات - تكنولوجيا الاجهزة - تكنولوجيا العمليات عملي - تربية دينية | BE22: عربي - انجليزي - رياضيات - فيزياء - - حاسب - امن صناعي - رسم فني | BF22: تخطيط - تكنولوجيا عمليات نظري - تاريخ الفنون - تكنولوجيا الخامات - تكنولوجيا الاجهزة - تكنولوجيا العمليات عملي - تربية دينية | BH22: عربي | BI22: انجليزي | BJ22: رياضيات | BK22: فيزياء | BL22: حاسب | BM22: امن صناعي | BN22: رسم فني | BO22: تخطيط | BP22: تكنولوجيا عمليات نظري | BQ22: تاريخ الفنون | BR22: تكنولوجيا الخامات | BS22: تكنولوجيا الاجهزة | BT22: تكنولوجيا العمليات عملي | BU22: تربية دينية | BW22: 1 | BX22: 1 | BY22: 1 | BZ22: 1 | CA22: 1 | CB22: 1 | CC22: 1 | CD22: 1 | CE22: 1 | CF22: 1 | CG22: 1 | CH22: 1 | CI22: 1 | CJ22: 1 | CK22: 13
A23: 19 | C23: 1519 | D23: 2719 | E23: علياء ابو الحسن محمد علي عطية | F23: 29809191801981 | G23: 1998-09-19 | H23: زخرفة قرار | I23: منقولة | J23: مسلمة | K23: مصرية | L23: 14 | N23: 14 | O23: 14 | Q23: 14 | R23: 5 | T23: 5 | U23: 13 | W23: 13 | X23: 5 | Z23: 5 | AA23: 7 | AC23: 7 | AD23: 40 | AF23: 40 | AG23: 11 | AI23: 11 | AJ23: 18 | AL23: 18 | AM23: 14 | AO23: 14 | AP23: 18 | AR23: 18 | AS23: 12 | AU23: 12 | AV23: 52 | AX23: 52 | AY23: 223 | AZ23: 8 | BB23: 8 | BC23: راسبة | BD23: عربي - انجليزي - رياضيات - فيزياء - - حاسب - امن صناعي - رسم فني - تخطيط - تكنولوجيا عمليات نظري - تاريخ الفنون - تكنولوجيا الخامات - تكنولوجيا الاجهزة - تكنولوجيا العمليات عملي - تربية دينية | BE23: عربي - انجليزي - رياضيات - فيزياء - - حاسب - امن صناعي - رسم فني | BF23: تخطيط - تكنولوجيا عمليات نظري - تاريخ الفنون - تكنولوجيا الخامات - تكنولوجيا الاجهزة - تكنولوجيا العمليات عملي - تربية دينية | BH23: عربي | BI23: انجليزي | BJ23: رياضيات | BK23: فيزياء | BL23: حاسب | BM23: امن صناعي | BN23: رسم فني | BO23: تخطيط | BP23: تكنولوجيا عمليات نظري | BQ23: تاريخ الفنون | BR23: تكنولوجيا الخامات | BS23: تكنولوجيا الاجهزة | BT23: تكنولوجيا العمليات عملي | BU23: تربية دينية | BW23: 1 | BX23: 1 | BY23: 1 | BZ23: 1 | CA23: 1 | CB23: 1 | CC23: 1 | CD23: 1 | CE23: 1 | CF23: 1 | CG23: 1 | CH23: 1 | CI23: 1 | CJ23: 1 | CK23: 13
A24: 20 | C24: 1520 | D24: 2720 | E24: غادة حسين كامل حسين | F24: 29301011841405 | G24: 1993-01-01 | H24: زخرفة قرار | I24: منقولة | J24: مسلمة | K24: مصرية | L24: 15 | N24: 15 | O24: 14 | Q24: 14 | R24: 5 | T24: 5 | U24: 15.5 | W24: 15.5 | X24: 5 | Z24: 5 | AA24: 7 | AC24: 7 | AD24: 40 | AF24: 40 | AG24: 10 | AI24: 10 | AJ24: 18 | AL24: 18 | AM24: 18 | AO24: 18 | AP24: 19 | AR24: 19 | AS24: 12 | AU24: 12 | AV24: 53 | AX24: 53 | AY24: 231.5 | AZ24: 8 | BB24: 8 | BC24: راسبة | BD24: عربي - انجليزي - رياضيات - فيزياء - - حاسب - امن صناعي - رسم فني - تخطيط - تكنولوجيا عمليات نظري - تاريخ الفنون - تكنولوجيا الخامات - تكنولوجيا الاجهزة - تكنولوجيا العمليات عملي - تربية دينية | BE24: عربي - انجليزي - رياضيات - فيزياء - - حاسب - امن صناعي - رسم فني | BF24: تخطيط - تكنولوجيا عمليات نظري - تاريخ الفنون - تكنولوجيا الخامات - تكنولوجيا الاجهزة - تكنولوجيا العمليات عملي - تربية دينية | BH24: عربي | BI24: انجليزي | BJ24: رياضيات | BK24: فيزياء | BL24: حاسب | BM24: امن صناعي | BN24: رسم فني | BO24: تخطيط | BP24: تكنولوجيا عمليات نظري | BQ24: تاريخ الفنون | BR24: تكنولوجيا الخامات | BS24: تكنولوجيا الاجهزة | BT24: تكنولوجيا العمليات عملي | BU24: تربية دينية | BW24: 1 | BX24: 1 | BY24: 1 | BZ24: 1 | CA24: 1 | CB24: 1 | CC24: 1 | CD24: 1 | CE24: 1 | CF24: 1 | CG24: 1 | CH24: 1 | CI24: 1 | CJ24: 1 | CK24: 13
A25: 21 | C25: 1521 | D25: 2721 | E25: غادة رجب فؤاد عبد المقصود بوادي | F25: 29808101803381 | G25: 1998-08-10 | H25: زخرفة قرار | I25: منقولة | J25: مسلمة | K25: مصرية | L25: 13 | N25: 13 | O25: 13 | Q25: 13 | R25: 6 | T25: 6 | U25: 16 | W25: 16 | X25: 5 | Z25: 5 | AA25: 7 | AC25: 7 | AD25: 40 | AF25: 40 | AG25: 10 | AI25: 10 | AJ25: 15 | AL25: 15 | AM25: 19 | AO25: 19 | AP25: 19 | AR25: 19 | AS25: 12 | AU25: 12 | AV25: 53 | AX25: 53 | AY25: 228 | AZ25: 7.5 | BB25: 7.5 | BC25: راسبة | BD25: عربي - انجليزي - رياضيات - فيزياء - - حاسب - امن صناعي - رسم فني - تخطيط - تكنولوجيا عمليات نظري - تاريخ الفنون - تكنولوجيا الخامات - تكنولوجيا الاجهزة - تكنولوجيا العمليات عملي - تربية دينية | BE25: عربي - انجليزي - رياضيات - فيزياء - - حاسب - امن صناعي - رسم فني | BF25: تخطيط - تكنولوجيا عمليات نظري - تاريخ الفنون - تكنولوجيا الخامات - تكنولوجيا الاجهزة - تكنولوجيا العمليات عملي - تربية دينية | BH25: عربي | BI25: انجليزي | BJ25: رياضيات | BK25: فيزياء | BL25: حاسب | BM25: امن صناعي | BN25: رسم فني | BO25: تخطيط | BP25: تكنولوجيا عمليات نظري | BQ25: تاريخ الفنون | BR25: تكنولوجيا الخامات | BS25: تكنولوجيا الاجهزة | BT25: تكنولوجيا العمليات عملي | BU25: تربية دينية | BW25: 1 | BX25: 1 | BY25: 1 | BZ25: 1 | CA25: 1 | CB25: 1 | CC25: 1 | CD25: 1 | CE25: 1 | CF25: 1 | CG25: 1 | CH25: 1 | CI25: 1 | CJ25: 1 | CK25: 13
A26: 22 | C26: 1522 | D26: 2722 | E26: منال سيد احمد ابو الحمد كبير | F26: 29810011809121 | G26: 1998-10-01 | H26: زخرفة قرار | I26: منقولة | J26: مسلمة | K26: مصرية | L26: 13.5 | N26: 13.5 | O26: 13.5 | Q26: 13.5 | R26: 8 | T26: 8 | U26: 16 | W26: 16 | X26: 6 | Z26: 6 | AA26: 8 | AC26: 8 | AD26: 40 | AF26: 40 | AG26: 10 | AI26: 10 | AJ26: 18 | AL26: 18 | AM26: 19 | AO26: 19 | AP26: 19 | AR26: 19 | AS26: 12 | AU26: 12 | AV26: 56 | AX26: 56 | AY26: 239 | AZ26: 5.5 | BB26: 5.5 | BC26: راسبة | BD26: عربي - انجليزي - رياضيات - فيزياء - - حاسب - امن صناعي - رسم فني - تخطيط - تكنولوجيا عمليات نظري - تاريخ الفنون - تكنولوجيا الخامات - تكنولوجيا الاجهزة - تكنولوجيا العمليات عملي - تربية دينية | BE26: عربي - انجليزي - رياضيات - فيزياء - - حاسب - امن صناعي - رسم فني | BF26: تخطيط - تكنولوجيا عمليات نظري - تاريخ الفنون - تكنولوجيا الخامات - تكنولوجيا الاجهزة - تكنولوجيا العمليات عملي - تربية دينية | BH26: عربي | BI26: انجليزي | BJ26: رياضيات | BK26: فيزياء | BL26: حاسب | BM26: امن صناعي | BN26: رسم فني | BO26: تخطيط | BP26: تكنولوجيا عمليات نظري | BQ26: تاريخ الفنون | BR26: تكنولوجيا الخامات | BS26: تكنولوجيا الاجهزة | BT26: تكنولوجيا العمليات عملي | BU26: تربية دينية | BW26: 1 | BX26: 1 | BY26: 1 | BZ26: 1 | CA26: 1 | CB26: 1 | CC26: 1 | CD26: 1 | CE26: 1 | CF26: 1 | CG26: 1 | CH26: 1 | CI26: 1 | CJ26: 1 | CK26: 13
A27: 23 | C27: 1523 | D27: 2723 | E27: ناديه محمد احمد عامر احمد | F27: 29507032601266 | G27: 1995-07-03 | H27: زخرفة قرار | I27: منقولة | J27: مسلمة | K27: مصرية | L27: 8 | N27: 8 | O27: 14.5 | Q27: 14.5 | R27: 3 | T27: 3 | U27: 17 | W27: 17 | X27: 5 | Z27: 5 | AA27: 9 | AC27: 9 | AD27: 40 | AF27: 40 | AG27: 10 | AI27: 10 | AJ27: 16 | AL27: 16 | AM27: 19 | AO27: 19 | AP27: 18 | AR27: 18 | AS27: 11 | AU27: 11 | AV27: 53 | AX27: 53 | AY27: 223.5 | AZ27: 6.5 | BB27: 6.5 | BC27: راسبة | BD27: عربي - انجليزي - رياضيات - فيزياء - - حاسب - امن صناعي - رسم فني - تخطيط - تكنولوجيا عمليات نظري - تاريخ الفنون - تكنولوجيا الخامات - تكنولوجيا الاجهزة - تكنولوجيا العمليات عملي - تربية دينية | BE27: عربي - انجليزي - رياضيات - فيزياء - - حاسب - امن صناعي - رسم فني | BF27: تخطيط - تكنولوجيا عمليات نظري - تاريخ الفنون - تكنولوجيا الخامات - تكنولوجيا الاجهزة - تكنولوجيا العمليات عملي - تربية دينية | BH27: عربي | BI27: انجليزي | BJ27: رياضيات | BK27: فيزياء | BL27: حاسب | BM27: امن صناعي | BN27: رسم فني | BO27: تخطيط | BP27: تكنولوجيا عمليات نظري | BQ27: تاريخ الفنون | BR27: تكنولوجيا الخامات | BS27: تكنولوجيا الاجهزة | BT27: تكنولوجيا العمليات عملي | BU27: تربية دينية | BW27: 1 | BX27: 1 | BY27: 1 | BZ27: 1 | CA27: 1 | CB27: 1 | CC27: 1 | CD27: 1 | CE27: 1 | CF27: 1 | CG27: 1 | CH27: 1 | CI27: 1 | CJ27: 1 | CK27: 13
A28: 24 | C28: 1524 | D28: 2724 | E28: ندى السيد عبد السلام البنا | F28: 29803011816503 | G28: 1998-03-01 | H28: زخرفة قرار | I28: منقولة | J28: مسلمة | K28: مصرية | L28: 12.5 | N28: 12.5 | O28: 15 | Q28: 15 | R28: 6 | T28: 6 | U28: 16.5 | W28: 16.5 | X28: 5 | Z28: 5 | AA28: 9 | AC28: 9 | AD28: 40 | AF28: 40 | AG28: 10 | AI28: 10 | AJ28: 15 | AL28: 15 | AM28: 19 | AO28: 19 | AP28: 19 | AR28: 19 | AS28: 9 | AU28: 9 | AV28: 54 | AX28: 54 | AY28: 230 | AZ28: 8 | BB28: 8 | BC28: راسبة | BD28: عربي - انجليزي - رياضيات - فيزياء - - حاسب - امن صناعي - رسم فني - تخطيط - تكنولوجيا عمليات نظري - تاريخ الفنون - تكنولوجيا الخامات - تكنولوجيا الاجهزة - تكنولوجيا العمليات عملي - تربية دينية | BE28: عربي - انجليزي - رياضيات - فيزياء - - حاسب - امن صناعي - رسم فني | BF28: تخطيط - تكنولوجيا عمليات نظري - تاريخ الفنون - تكنولوجيا الخامات - تكنولوجيا الاجهزة - تكنولوجيا العمليات عملي - تربية دينية | BH28: عربي | BI28: انجليزي | BJ28: رياضيات | BK28: فيزياء | BL28: حاسب | BM28: امن صناعي | BN28: رسم فني | BO28: تخطيط | BP28: تكنولوجيا عمليات نظري | BQ28: تاريخ الفنون | BR28: تكنولوجيا الخامات | BS28: تكنولوجيا الاجهزة | BT28: تكنولوجيا العمليات عملي | BU28: تربية دينية | BW28: 1 | BX28: 1 | BY28: 1 | BZ28: 1 | CA28: 1 | CB28: 1 | CC28: 1 | CD28: 1 | CE28: 1 | CF28: 1 | CG28: 1 | CH28: 1 | CI28: 1 | CJ28: 1 | CK28: 13
A29: 25 | C29: 1525 | D29: 2725 | E29: ندى مجدي سعد مؤنس | F29: 29601011827601 | G29: 1996-01-01 | H29: زخرفة قرار | I29: منقولة | J29: مسلمة | K29: مصرية | L29: 13 | N29: 13 | O29: 14.5 | Q29: 14.5 | R29: 3 | T29: 3 | U29: 16.5 | W29: 16.5 | X29: 5 | Z29: 5 | AA29: 9 | AC29: 9 | AD29: 35 | AF29: 35 | AG29: 10 | AI29: 10 | AJ29: 16 | AL29: 16 | AM29: 18 | AO29: 18 | AP29: 19 | AR29: 19 | AS29: 10 | AU29: 10 | AV29: 54 | AX29: 54 | AY29: 223 | AZ29: 6 | BB29: 6 | BC29: راسبة | BD29: عربي - انجليزي - رياضيات - فيزياء - - حاسب - امن صناعي - رسم فني - تخطيط - تكنولوجيا عمليات نظري - تاريخ الفنون - تكنولوجيا الخامات - تكنولوجيا الاجهزة - تكنولوجيا العمليات عملي - تربية دينية | BE29: عربي - انجليزي - رياضيات - فيزياء - - حاسب - امن صناعي - رسم فني | BF29: تخطيط - تكنولوجيا عمليات نظري - تاريخ الفنون - تكنولوجيا الخامات - تكنولوجيا الاجهزة - تكنولوجيا العمليات عملي - تربية دينية | BH29: عربي | BI29: انجليزي | BJ29: رياضيات | BK29: فيزياء | BL29: حاسب | BM29: امن صناعي | BN29: رسم فني | BO29: تخطيط | BP29: تكنولوجيا عمليات نظري | BQ29: تاريخ الفنون | BR29: تكنولوجيا الخامات | BS29: تكنولوجيا الاجهزة | BT29: تكنولوجيا العمليات عملي | BU29: تربية دينية | BW29: 1 | BX29: 1 | BY29: 1 | BZ29: 1 | CA29: 1 | CB29: 1 | CC29: 1 | CD29: 1 | CE29: 1 | CF29: 1 | CG29: 1 | CH29: 1 | CI29: 1 | CJ29: 1 | CK29: 13
A30: 26 | C30: 1526 | D30: 2726 | E30: نهى محمد فؤاد قطب زلهف | F30: 29807231801324 | G30: 1998-07-23 | H30: زخرفة قرار | I30: منقولة | J30: مسلمة | K30: مصرية | L30: 11 | N30: 11 | O30: 14 | Q30: 14 | R30: 4 | T30: 4 | U30: 13.5 | W30: 13.5 | X30: 5 | Z30: 5 | AA30: 9 | AC30: 9 | AD30: 40 | AF30: 40 | AG30: 10 | AI30: 10 | AJ30: 16 | AL30: 16 | AM30: 19 | AO30: 19 | AP30: 19 | AR30: 19 | AS30: 9 | AU30: 9 | AV30: 58 | AX30: 58 | AY30: 227.5 | AZ30: 7.5 | BB30: 7.5 | BC30: راسبة | BD30: عربي - انجليزي - رياضيات - فيزياء - - حاسب - امن صناعي - رسم فني - تخطيط - تكنولوجيا عمليات نظري - تاريخ الفنون - تكنولوجيا الخامات - تكنولوجيا الاجهزة - تكنولوجيا العمليات عملي - تربية دينية | BE30: عربي - انجليزي - رياضيات - فيزياء - - حاسب - امن صناعي - رسم فني | BF30: تخطيط - تكنولوجيا عمليات نظري - تاريخ الفنون - تكنولوجيا الخامات - تكنولوجيا الاجهزة - تكنولوجيا العمليات عملي - تربية دينية | BH30: عربي | BI30: انجليزي | BJ30: رياضيات | BK30: فيزياء | BL30: حاسب | BM30: امن صناعي | BN30: رسم فني | BO30: تخطيط | BP30: تكنولوجيا عمليات نظري | BQ30: تاريخ الفنون | BR30: تكنولوجيا الخامات | BS30: تكنولوجيا الاجهزة | BT30: تكنولوجيا العمليات عملي | BU30: تربية دينية | BW30: 1 | BX30: 1 | BY30: 1 | BZ30: 1 | CA30: 1 | CB30: 1 | CC30: 1 | CD30: 1 | CE30: 1 | CF30: 1 | CG30: 1 | CH30: 1 | CI30: 1 | CJ30: 1 | CK30: 13
A31: 27 | C31: 1527 | D31: 2727 | E31: هبة محمود سعد الدين محمود النفراوي | F31: 29806201803741 | G31: 1998-06-20 | H31: زخرفة قرار | I31: منقولة | J31: مسلمة | K31: مصرية | L31: 11 | N31: 11 | O31: 14.5 | Q31: 14.5 | R31: 5 | T31: 5 | U31: 15 | W31: 15 | X31: 5 | Z31: 5 | AA31: 9 | AC31: 9 | AD31: 35 | AF31: 35 | AG31: 10 | AI31: 10 | AJ31: 16 | AL31: 16 | AM31: 19 | AO31: 19 | AP31: 19 | AR31: 19 | AS31: 8 | AU31: 8 | AV31: 56 | AX31: 56 | AY31: 222.5 | AZ31: 5.5 | BB31: 5.5 | BC31: راسبة | BD31: عربي - انجليزي - رياضيات - فيزياء - - حاسب - امن صناعي - رسم فني - تخطيط - تكنولوجيا عمليات نظري - تاريخ الفنون - تكنولوجيا الخامات - تكنولوجيا الاجهزة - تكنولوجيا العمليات عملي - تربية دينية | BE31: عربي - انجليزي - رياضيات - فيزياء - - حاسب - امن صناعي - رسم فني | BF31: تخطيط - تكنولوجيا عمليات نظري - تاريخ الفنون - تكنولوجيا الخامات - تكنولوجيا الاجهزة - تكنولوجيا العمليات عملي - تربية دينية | BH31: عربي | BI31: انجليزي | BJ31: رياضيات | BK31: فيزياء | BL31: حاسب | BM31: امن صناعي | BN31: رسم فني | BO31: تخطيط | BP31: تكنولوجيا عمليات نظري | BQ31: تاريخ الفنون | BR31: تكنولوجيا الخامات | BS31: تكنولوجيا الاجهزة | BT31: تكنولوجيا العمليات عملي | BU31: تربية دينية | BW31: 1 | BX31: 1 | BY31: 1 | BZ31: 1 | CA31: 1 | CB31: 1 | CC31: 1 | CD31: 1 | CE31: 1 | CF31: 1 | CG31: 1 | CH31: 1 | CI31: 1 | CJ31: 1 | CK31: 13
A32: 28 | C32: 1528 | D32: 2728 | E32: وفاء محمود مصطفى على السيد | F32: 30012241801708 | G32: 2000-12-24 | H32: زخرفة قرار | I32: منقولة | J32: مسلمة | K32: مصرية | L32: 12.5 | N32: 12.5 | O32: 12.5 | Q32: 12.5 | R32: 5 | T32: 5 | U32: 15 | W32: 15 | X32: 7 | Z32: 7 | AA32: 9 | AC32: 9 | AD32: 35 | AF32: 35 | AG32: 10 | AI32: 10 | AJ32: 15 | AL32: 15 | AM32: 19 | AO32: 19 | AP32: 19 | AR32: 19 | AS32: 10 | AU32: 10 | AV32: 55 | AX32: 55 | AY32: 224 | AZ32: 7.5 | BB32: 7.5 | BC32: راسبة | BD32: عربي - انجليزي - رياضيات - فيزياء - - حاسب - امن صناعي - رسم فني - تخطيط - تكنولوجيا عمليات نظري - تاريخ الفنون - تكنولوجيا الخامات - تكنولوجيا الاجهزة - تكنولوجيا العمليات عملي - تربية دينية | BE32: عربي - انجليزي - رياضيات - فيزياء - - حاسب - امن صناعي - رسم فني | BF32: تخطيط - تكنولوجيا عمليات نظري - تاريخ الفنون - تكنولوجيا الخامات - تكنولوجيا الاجهزة - تكنولوجيا العمليات عملي - تربية دينية | BH32: عربي | BI32: انجليزي | BJ32: رياضيات | BK32: فيزياء | BL32: حاسب | BM32: امن صناعي | BN32: رسم فني | BO32: تخطيط | BP32: تكنولوجيا عمليات نظري | BQ32: تاريخ الفنون | BR32: تكنولوجيا الخامات | BS32: تكنولوجيا الاجهزة | BT32: تكنولوجيا العمليات عملي | BU32: تربية دينية | BW32: 1 | BX32: 1 | BY32: 1 | BZ32: 1 | CA32: 1 | CB32: 1 | CC32: 1 | CD32: 1 | CE32: 1 | CF32: 1 | CG32: 1 | CH32: 1 | CI32: 1 | CJ32: 1 | CK32: 13
A33: 29 | C33: 1529 | D33: 2729 | E33: ياسمين محمد حسين فياله | F33: 30108081802726 | G33: 2001-08-08 | H33: زخرفة قرار | I33: منقولة | J33: مسلمة | K33: مصرية | L33: 13.5 | N33: 13.5 | O33: 15 | Q33: 15 | R33: 5 | T33: 5 | U33: 15 | W33: 15 | X33: 7 | Z33: 7 | AA33: 9 | AC33: 9 | AD33: 40 | AF33: 40 | AG33: 10 | AI33: 10 | AJ33: 16 | AL33: 16 | AM33: 19 | AO33: 19 | AP33: 19 | AR33: 19 | AS33: 11 | AU33: 11 | AV33: 58 | AX33: 58 | AY33: 237.5 | AZ33: 7.5 | BB33: 7.5 | BC33: راسبة | BD33: عربي - انجليزي - رياضيات - فيزياء - - حاسب - امن صناعي - رسم فني - تخطيط - تكنولوجيا عمليات نظري - تاريخ الفنون - تكنولوجيا الخامات - تكنولوجيا الاجهزة - تكنولوجيا العمليات عملي - تربية دينية | BE33: عربي - انجليزي - رياضيات - فيزياء - - حاسب - امن صناعي - رسم فني | BF33: تخطيط - تكنولوجيا عمليات نظري - تاريخ الفنون - تكنولوجيا الخامات - تكنولوجيا الاجهزة - تكنولوجيا العمليات عملي - تربية دينية | BH33: عربي | BI33: انجليزي | BJ33: رياضيات | BK33: فيزياء | BL33: حاسب | BM33: امن صناعي | BN33: رسم فني | BO33: تخطيط | BP33: تكنولوجيا عمليات نظري | BQ33: تاريخ الفنون | BR33: تكنولوجيا الخامات | BS33: تكنولوجيا الاجهزة | BT33: تكنولوجيا العمليات عملي | BU33: تربية دينية | BW33: 1 | BX33: 1 | BY33: 1 | BZ33: 1 | CA33: 1 | CB33: 1 | CC33: 1 | CD33: 1 | CE33: 1 | CF33: 1 | CG33: 1 | CH33: 1 | CI33: 1 | CJ33: 1 | CK33: 13
J34: حاضر | L34: =29-L35 -> 28 | O34: =29-O35 -> 28 | R34: =29-R35 -> 28 | U34: =29-U35 -> 28 | X34: =29-X35 -> 29 | AA34: =29-AA35 -> 28 | AD34: =29-AD35 -> 28 | AG34: =29-AG35 -> 28 | AJ34: =29-AJ35 -> 28 | AM34: =29-AM35 -> 28 | AP34: =29-AP35 -> 28 | AS34: =29-AS35 -> 28 | AV34: =29-AV35 -> 28 | AZ34: =29-AZ35 -> 28
J35: غياب | L35: =COUNTIF(L5:L33,"=غ") -> 1 | O35: =COUNTIF(O5:O33,"=غ") -> 1 | R35: =COUNTIF(R5:R33,"=غ") -> 1 | U35: =COUNTIF(U5:U33,"=غ") -> 1 | X35: =COUNTIF(X5:X33,"=غ") -> 0 | AA35: =COUNTIF(AA5:AA33,"=غ") -> 1 | AD35: =COUNTIF(AD5:AD33,"=غ") -> 1 | AG35: =COUNTIF(AG5:AG33,"=غ") -> 1 | AJ35: =COUNTIF(AJ5:AJ33,"=غ") -> 1 | AM35: =COUNTIF(AM5:AM33,"=غ") -> 1 | AP35: =COUNTIF(AP5:AP33,"=غ") -> 1 | AS35: =COUNTIF(AS5:AS33,"=غ") -> 1 | AV35: =COUNTIF(AV5:AV33,"=غ") -> 1 | AZ35: =COUNTIF(AZ5:AZ33,"=غ") -> 1
J36: ناجح | L36: =COUNTIF(L5:L33,">=12.5") -> 20 | O36: =COUNTIF(O5:O33,">=10") -> 22 | R36: =COUNTIF(R5:R33,">=12.5") -> 7 | U36: =COUNTIF(U5:U33,">=10") -> 28 | X36: =COUNTIF(X5:X33,">=5") -> 29 | AA36: =COUNTIF(AA5:AA33,">=5") -> 28 | AD36: =COUNTIF(AD5:AD33,">=25") -> 28 | AG36: =COUNTIF(AG5:AG33,">=10") -> 18 | AJ36: =COUNTIF(AJ5:AJ33,">=15") -> 28 | AM36: =COUNTIF(AM5:AM33,">=12.5") -> 28 | AP36: =COUNTIF(AP5:AP33,">=12.5") -> 28 | AS36: =COUNTIF(AS5:AS33,">=10") -> 20 | AV36: =COUNTIF(AV5:AV33,">=35") -> 28 | AZ36: =COUNTIF(AZ5:AZ33,">=5") -> 28
J37: راسب | L37: =COUNTIF(L5:L33,"<12.5") -> 8 | O37: =COUNTIF(O5:O33,"<10") -> 6 | R37: =COUNTIF(R5:R33,"<12.5") -> 20 | U37: =COUNTIF(U5:U33,"<10") -> 0 | X37: =COUNTIF(X5:X33,"<5") -> 0 | AA37: =COUNTIF(AA5:AA33,"<5") -> 0 | AD37: =COUNTIF(AD5:AD33,"<25") -> 0 | AG37: =COUNTIF(AG5:AG33,"<10") -> 10 | AJ37: =COUNTIF(AJ5:AJ33,"<15") -> 0 | AM37: =COUNTIF(AM5:AM33,"<12.5") -> 0 | AP37: =COUNTIF(AP5:AP33,"<12.5") -> 0 | AS37: =COUNTIF(AS5:AS33,"<10") -> 8 | AV37: =COUNTIF(AV5:AV33,"<35") -> 0 | AZ37: =COUNTIF(AZ5:AZ33,"<5") -> 0
J38: النسبة | L38: =L36/L34% -> 71.42857143 | O38: =O36/O34% -> 78.57142857 | R38: =R36/R34% -> 25 | U38: =U36/U34% -> 100 | X38: =X36/X34% -> 100 | AA38: =AA36/AA34% -> 100 | AD38: =AD36/AD34% -> 100 | AG38: =AG36/AG34% -> 64.28571429 | AJ38: =AJ36/AJ34% -> 100 | AM38: =AM36/AM34% -> 100 | AP38: =AP36/AP34% -> 100 | AS38: =AS36/AS34% -> 71.42857143 | AV38: =AV36/AV34% -> 100 | AZ38: =AZ36/29% -> 96.55172414

Sheet شيت طباعة
A1: م | I1: لغة عربية | K1: لغة إنجليزية | M1: رياضيات | O1: فيزياء | Q1: حاسب الي | S1: امن صناعي | U1: رسم فني | W1: تخطيط | Y1: تك. العمليات نظري | AA1: تك. الخامات نظري | AC1: تك. الاجهزة | AE1: تاريخ الفنون | AG1: تك. العمليات ع | AJ1: التربية الدينية | AL1: النتيجة | AM1: مواد الرسوب
I2: آخر العام | J2: المجموع | K2: آخر العام | L2: المجموع | M2: آخر العام | N2: المجموع | O2: آخر العام | P2: المجموع | Q2: آخر العام | R2: المجموع | S2: آخر العام | T2: المجموع | U2: آخر العام | V2: المجموع | W2: آخر العام | X2: المجموع | Y2: آخر العام | Z2: المجموع | AA2: آخر العام | AB2: المجموع | AC2: آخر العام | AD2: المجموع | AE2: آخر العام | AF2: المجموع | AG2: آخر العام | AH2: المجموع | AI2: المجموع الكلي | AJ2: آخر العام | AK2: المجموع
A3: م | B3: رقم الجلوس | C3: الاســــــــــــــــم | D3: الرقم القومي | E3: الصناعة | F3: حالة القيد | G3: الديانة | H3: الجنسية | I3: 25 | J3: 50 | K3: 20 | L3: 40 | M3: 25 | N3: 50 | O3: 20 | P3: 40 | Q3: 10 | R3: 20 | S3: 10 | T3: 20 | U3: 50 | V3: 100 | W3: 20 | X3: 40 | Y3: 30 | Z3: 60 | AA3: 25 | AB3: 50 | AC3: 25 | AD3: 50 | AE3: 20 | AF3: 40 | AG3: 70 | AH3: 140 | AI3: 700 | AJ3: 10 | AK3: 20
I4: 6.25 | J4: 25 | K4: 5 | L4: 20 | M4: 6.5 | N4: 25 | O4: 5 | P4: 20 | Q4: 2.5 | R4: 10 | S4: 2.5 | T4: 10 | U4: 12.5 | V4: 50 | W4: 5 | X4: 20 | Y4: 7.5 | Z4: 30 | AA4: 6.5 | AB4: 25 | AC4: 6.5 | AD4: 25 | AE4: 5 | AF4: 20 | AG4: 17.5 | AH4: 70 | AI4: 350 | AJ4: 2.5 | AK4: 10
A5: 1 | B5: ='الصف الثاني'!D5 -> 2701 | C5: ='الصف الثاني'!E5 -> اسراء ابراهيم نبيل على محمد عمر | D5: ='الصف الثاني'!F5 -> 29909281800504 | E5: ='الصف الثاني'!H5 -> زخرفة قرار | F5: ='الصف الثاني'!I20 -> منقولة | G5: ='الصف الثاني'!J20 -> مسلمة | H5: ='الصف الثاني'!K20 -> مصرية | I5: ='الصف الثاني'!M5 -> 0 | J5: ='الصف الثاني'!N5 -> 14 | K5: ='الصف الثاني'!P5 -> 0 | L5: ='الصف الثاني'!Q5 -> 9 | M5: ='الصف الثاني'!S5 -> 0 | N5: ='الصف الثاني'!T5 -> 3 | O5: ='الصف الثاني'!V5 -> 0 | P5: ='الصف الثاني'!W5 -> 11.5 | Q5: ='الصف الثاني'!Y5 -> 0 | R5: ='الصف الثاني'!Z5 -> 5 | S5: ='الصف الثاني'!AB5 -> 0 | T5: ='الصف الثاني'!AC5 -> 5 | U5: ='الصف الثاني'!AE5 -> 0 | V5: ='الصف الثاني'!AF5 -> 40 | W5: ='الصف الثاني'!AH5 -> 0 | X5: ='الصف الثاني'!AI5 -> 5 | Y5: ='الصف الثاني'!AK5 -> 0 | Z5: ='الصف الثاني'!AL5 -> 27 | AA5: ='الصف الثاني'!AN5 -> 0 | AB5: ='الصف الثاني'!AO5 -> 13 | AC5: ='الصف الثاني'!AQ5 -> 0 | AD5: ='الصف الثاني'!AR5 -> 17 | AE5: ='الصف الثاني'!AT5 -> 0 | AF5: ='الصف الثاني'!AU5 -> 13 | AG5: ='الصف الثاني'!AW5 -> 0 | AH5: ='الصف الثاني'!AX5 -> 58 | AI5: ='الصف الثاني'!AY5 -> 220.5 | AJ5: ='الصف الثاني'!BA5 -> 0 | AK5: ='الصف الثاني'!BB5 -> 7 | AL5: ='الصف الثاني'!BC5 -> راسبة | AM5: ='الصف الثاني'!BD5 -> عربي - انجليزي - رياضيات - فيزياء - - حاسب - امن صناعي - رسم فني - تخطيط - تكنولوجيا عمليات نظري - تاريخ الفنون - تكنولوجيا الخامات - تكنولوجيا الاجهزة - تكنولوجيا العمليات عملي - تربية دينية
A6: 2 | B6: ='الصف الثاني'!D6 -> 2702 | C6: ='الصف الثاني'!E6 -> اسراء حسن فؤاد موسى محمد غراب | D6: ='الصف الثاني'!F6 -> 29612051801843 | E6: ='الصف الثاني'!H6 -> زخرفة قرار | F6: ='الصف الثاني'!I21 -> منقولة | G6: ='الصف الثاني'!J21 -> مسلمة | H6: ='الصف الثاني'!K21 -> مصرية | I6: ='الصف الثاني'!M6 -> 0 | J6: ='الصف الثاني'!N6 -> 16.5 | K6: ='الصف الثاني'!P6 -> 0 | L6: ='الصف الثاني'!Q6 -> 10 | M6: ='الصف الثاني'!S6 -> 0 | N6: ='الصف الثاني'!T6 -> 9.5 | O6: ='الصف الثاني'!V6 -> 0 | P6: ='الصف الثاني'!W6 -> 10 | Q6: ='الصف الثاني'!Y6 -> 0 | R6: ='الصف الثاني'!Z6 -> 5 | S6: ='الصف الثاني'!AB6 -> 0 | T6: ='الصف الثاني'!AC6 -> 7 | U6: ='الصف الثاني'!AE6 -> 0 | V6: ='الصف الثاني'!AF6 -> 40 | W6: ='الصف الثاني'!AH6 -> 0 | X6: ='الصف الثاني'!AI6 -> 3 | Y6: ='الصف الثاني'!AK6 -> 0 | Z6: ='الصف الثاني'!AL6 -> 26 | AA6: ='الصف الثاني'!AN6 -> 0 | AB6: ='الصف الثاني'!AO6 -> 17 | AC6: ='الصف الثاني'!AQ6 -> 0 | AD6: ='الصف الثاني'!AR6 -> 17 | AE6: ='الصف الثاني'!AT6 -> 0 | AF6: ='الصف الثاني'!AU6 -> 12 | AG6: ='الصف الثاني'!AW6 -> 0 | AH6: ='الصف الثاني'!AX6 -> 55 | AI6: ='الصف الثاني'!AY6 -> 228 | AJ6: ='الصف الثاني'!BA6 -> 0 | AK6: ='الصف الثاني'!BB6 -> 6.5 | AL6: ='الصف الثاني'!BC6 -> راسبة | AM6: ='الصف الثاني'!BD6 -> عربي - انجليزي - رياضيات - فيزياء - - حاسب - امن صناعي - رسم فني - تخطيط - تكنولوجيا عمليات نظري - تاريخ الفنون - تكنولوجيا الخامات - تكنولوجيا الاجهزة - تكنولوجيا العمليات عملي - تربية دينية
A7: 3 | B7: ='الصف الثاني'!D7 -> 2703 | C7: ='الصف الثاني'!E7 -> اسراء حسين بسيوني سلامة | D7: ='الصف الثاني'!F7 -> 30101151802201 | E7: ='الصف الثاني'!H7 -> زخرفة قرار | F7: ='الصف الثاني'!I22 -> منقولة | G7: ='الصف الثاني'!J22 -> مسلمة | H7: ='الصف الثاني'!K22 -> مصرية | I7: ='الصف الثاني'!M7 -> 0 | J7: ='الصف الثاني'!N7 -> 14.5 | K7: ='الصف الثاني'!P7 -> 0 | L7: ='الصف الثاني'!Q7 -> 9 | M7: ='الصف الثاني'!S7 -> 0 | N7: ='الصف الثاني'!T7 -> 19.5 | O7: ='الصف الثاني'!V7 -> 0 | P7: ='الصف الثاني'!W7 -> 15 | Q7: ='الصف الثاني'!Y7 -> 0 | R7: ='الصف الثاني'!Z7 -> 5 | S7: ='الصف الثاني'!AB7 -> 0 | T7: ='الصف الثاني'!AC7 -> 7 | U7: ='الصف الثاني'!AE7 -> 0 | V7: ='الصف الثاني'!AF7 -> 40 | W7: ='الصف الثاني'!AH7 -> 0 | X7: ='الصف الثاني'!AI7 -> 10 | Y7: ='الصف الثاني'!AK7 -> 0 | Z7: ='الصف الثاني'!AL7 -> 25 | AA7: ='الصف الثاني'!AN7 -> 0 | AB7: ='الصف الثاني'!AO7 -> 19 | AC7: ='الصف الثاني'!AQ7 -> 0 | AD7: ='الصف الثاني'!AR7 -> 17 | AE7: ='الصف الثاني'!AT7 -> 0 | AF7: ='الصف الثاني'!AU7 -> 11 | AG7: ='الصف الثاني'!AW7 -> 0 | AH7: ='الصف الثاني'!AX7 -> 56 | AI7: ='الصف الثاني'!AY7 -> 248 | AJ7: ='الصف الثاني'!BA7 -> 0 | AK7: ='الصف الثاني'!BB7 -> 6.5 | AL7: ='الصف الثاني'!BC7 -> راسبة | AM7: ='الصف الثاني'!BD7 -> عربي - انجليزي - رياضيات - فيزياء - - حاسب - امن صناعي - رسم فني - تخطيط - تكنولوجيا عمليات نظري - تاريخ الفنون - تكنولوجيا الخامات - تكنولوجيا الاجهزة - تكنولوجيا العمليات عملي - تربية دينية
A8: 4 | B8: ='الصف الثاني'!D8 -> 2704 | C8: ='الصف الثاني'!E8 -> اسراء محمد مسعود السيد ابراهيم | D8: ='الصف الثاني'!F8 -> 30102141800282 | E8: ='الصف الثاني'!H8 -> زخرفة قرار | F8: ='الصف الثاني'!I23 -> منقولة | G8: ='الصف الثاني'!J23 -> مسلمة | H8: ='الصف الثاني'!K23 -> مصرية | I8: ='الصف الثاني'!M8 -> 0 | J8: ='الصف الثاني'!N8 -> 14.5 | K8: ='الصف الثاني'!P8 -> 0 | L8: ='الصف الثاني'!Q8 -> 10 | M8: ='الصف الثاني'!S8 -> 0 | N8: ='الصف الثاني'!T8 -> 17 | O8: ='الصف الثاني'!V8 -> 0 | P8: ='الصف الثاني'!W8 -> 13.5 | Q8: ='الصف الثاني'!Y8 -> 0 | R8: ='الصف الثاني'!Z8 -> 5 | S8: ='الصف الثاني'!AB8 -> 0 | T8: ='الصف الثاني'!AC8 -> 5 | U8: ='الصف الثاني'!AE8 -> 0 | V8: ='الصف الثاني'!AF8 -> 50 | W8: ='الصف الثاني'!AH8 -> 0 | X8: ='الصف الثاني'!AI8 -> 11 | Y8: ='الصف الثاني'!AK8 -> 0 | Z8: ='الصف الثاني'!AL8 -> 24 | AA8: ='الصف الثاني'!AN8 -> 0 | AB8: ='الصف الثاني'!AO8 -> 19 | AC8: ='الصف الثاني'!AQ8 -> 0 | AD8: ='الصف الثاني'!AR8 -> 19 | AE8: ='الصف الثاني'!AT8 -> 0 | AF8: ='الصف الثاني'!AU8 -> 11 | AG8: ='الصف الثاني'!AW8 -> 0 | AH8: ='الصف الثاني'!AX8 -> 57 | AI8: ='الصف الثاني'!AY8 -> 256 | AJ8: ='الصف الثاني'!BA8 -> 0 | AK8: ='الصف الثاني'!BB8 -> 8 | AL8: ='الصف الثاني'!BC8 -> راسبة | AM8: ='الصف الثاني'!BD8 -> عربي - انجليزي - رياضيات - فيزياء - - حاسب - امن صناعي - رسم فني - تخطيط - تكنولوجيا عمليات نظري - تاريخ الفنون - تكنولوجيا الخامات - تكنولوجيا الاجهزة - تكنولوجيا العمليات عملي - تربية دينية
A9: 5 | B9: ='الصف الثاني'!D9 -> 2705 | C9: ='الصف الثاني'!E9 -> اية محمد خليفة محمود البنا | D9: ='الصف الثاني'!F9 -> 29611241801827 | E9: ='الصف الثاني'!H9 -> زخرفة قرار | F9: ='الصف الثاني'!I24 -> منقولة | G9: ='الصف الثاني'!J24 -> مسلمة | H9: ='الصف الثاني'!K24 -> مصرية | I9: ='الصف الثاني'!M9 -> 0 | J9: ='الصف الثاني'!N9 -> 12 | K9: ='الصف الثاني'!P9 -> 0 | L9: ='الصف الثاني'!Q9 -> 7 | M9: ='الصف الثاني'!S9 -> 0 | N9: ='الصف الثاني'!T9 -> 16 | O9: ='الصف الثاني'!V9 -> 0 | P9: ='الصف الثاني'!W9 -> 13.5 | Q9: ='الصف الثاني'!Y9 -> 0 | R9: ='الصف الثاني'!Z9 -> 5 | S9: ='الصف الثاني'!AB9 -> 0 | T9: ='الصف الثاني'!AC9 -> 5 | U9: ='الصف الثاني'!AE9 -> 0 | V9: ='الصف الثاني'!AF9 -> 35 | W9: ='الصف الثاني'!AH9 -> 0 | X9: ='الصف الثاني'!AI9 -> 10 | Y9: ='الصف الثاني'!AK9 -> 0 | Z9: ='الصف الثاني'!AL9 -> 24 | AA9: ='الصف الثاني'!AN9 -> 0 | AB9: ='الصف الثاني'!AO9 -> 18 | AC9: ='الصف الثاني'!AQ9 -> 0 | AD9: ='الصف الثاني'!AR9 -> 18 | AE9: ='الصف الثاني'!AT9 -> 0 | AF9: ='الصف الثاني'!AU9 -> 11 | AG9: ='الصف الثاني'!AW9 -> 0 | AH9: ='الصف الثاني'!AX9 -> 54 | AI9: ='الصف الثاني'!AY9 -> 228.5 | AJ9: ='الصف الثاني'!BA9 -> 0 | AK9: ='الصف الثاني'!BB9 -> 6 | AL9: ='الصف الثاني'!BC9 -> راسبة | AM9: ='الصف الثاني'!BD9 -> عربي - انجليزي - رياضيات - فيزياء - - حاسب - امن صناعي - رسم فني - تخطيط - تكنولوجيا عمليات نظري - تاريخ الفنون - تكنولوجيا الخامات - تكنولوجيا الاجهزة - تكنولوجيا العمليات عملي - تربية دينية
A10: 6 | B10: ='الصف الثاني'!D10 -> 2706 | C10: ='الصف الثاني'!E10 -> ايمان ابراهيم محمود الحناوي | D10: ='الصف الثاني'!F10 -> 29903131800761 | E10: ='الصف الثاني'!H10 -> زخرفة قرار | F10: ='الصف الثاني'!I25 -> منقولة | G10: ='الصف الثاني'!J25 -> مسلمة | H10: ='الصف الثاني'!K25 -> مصرية | I10: ='الصف الثاني'!M10 -> 0 | J10: ='الصف الثاني'!N10 -> 14 | K10: ='الصف الثاني'!P10 -> 0 | L10: ='الصف الثاني'!Q10 -> 8.5 | M10: ='الصف الثاني'!S10 -> 0 | N10: ='الصف الثاني'!T10 -> 18 | O10: ='الصف الثاني'!V10 -> 0 | P10: ='الصف الثاني'!W10 -> 13.5 | Q10: ='الصف الثاني'!Y10 -> 0 | R10: ='الصف الثاني'!Z10 -> 5 | S10: ='الصف الثاني'!AB10 -> 0 | T10: ='الصف الثاني'!AC10 -> 5 | U10: ='الصف الثاني'!AE10 -> 0 | V10: ='الصف الثاني'!AF10 -> 40 | W10: ='الصف الثاني'!AH10 -> 0 | X10: ='الصف الثاني'!AI10 -> 9 | Y10: ='الصف الثاني'!AK10 -> 0 | Z10: ='الصف الثاني'!AL10 -> 23 | AA10: ='الصف الثاني'!AN10 -> 0 | AB10: ='الصف الثاني'!AO10 -> 18 | AC10: ='الصف الثاني'!AQ10 -> 0 | AD10: ='الصف الثاني'!AR10 -> 19 | AE10: ='الصف الثاني'!AT10 -> 0 | AF10: ='الصف الثاني'!AU10 -> 11 | AG10: ='الصف الثاني'!AW10 -> 0 | AH10: ='الصف الثاني'!AX10 -> 57 | AI10: ='الصف الثاني'!AY10 -> 241 | AJ10: ='الصف الثاني'!BA10 -> 0 | AK10: ='الصف الثاني'!BB10 -> 8 | AL10: ='الصف الثاني'!BC10 -> راسبة | AM10: ='الصف الثاني'!BD10 -> عربي - انجليزي - رياضيات - فيزياء - - حاسب - امن صناعي - رسم فني - تخطيط - تكنولوجيا عمليات نظري - تاريخ الفنون - تكنولوجيا الخامات - تكنولوجيا الاجهزة - تكنولوجيا العمليات عملي - تربية دينية
A11: 7 | B11: ='الصف الثاني'!D11 -> 2707 | C11: ='الصف الثاني'!E11 -> بسمة محمد عبد الفتاح سعد | D11: ='الصف الثاني'!F11 -> 30002121803108 | E11: ='الصف الثاني'!H11 -> زخرفة قرار | F11: ='الصف الثاني'!I26 -> منقولة | G11: ='الصف الثاني'!J26 -> مسلمة | H11: ='الصف الثاني'!K26 -> مصرية | I11: ='الصف الثاني'!M11 -> 0 | J11: ='الصف الثاني'!N11 -> 14.5 | K11: ='الصف الثاني'!P11 -> 0 | L11: ='الصف الثاني'!Q11 -> 10.5 | M11: ='الصف الثاني'!S11 -> 0 | N11: ='الصف الثاني'!T11 -> 16.5 | O11: ='الصف الثاني'!V11 -> 0 | P11: ='الصف الثاني'!W11 -> 13.5 | Q11: ='الصف الثاني'!Y11 -> 0 | R11: ='الصف الثاني'!Z11 -> 5 | S11: ='الصف الثاني'!AB11 -> 0 | T11: ='الصف الثاني'!AC11 -> 5 | U11: ='الصف الثاني'!AE11 -> 0 | V11: ='الصف الثاني'!AF11 -> 35 | W11: ='الصف الثاني'!AH11 -> 0 | X11: ='الصف الثاني'!AI11 -> 10 | Y11: ='الصف الثاني'!AK11 -> 0 | Z11: ='الصف الثاني'!AL11 -> 25 | AA11: ='الصف الثاني'!AN11 -> 0 | AB11: ='الصف الثاني'!AO11 -> 19 | AC11: ='الصف الثاني'!AQ11 -> 0 | AD11: ='الصف الثاني'!AR11 -> 19 | AE11: ='الصف الثاني'!AT11 -> 0 | AF11: ='الصف الثاني'!AU11 -> 11 | AG11: ='الصف الثاني'!AW11 -> 0 | AH11: ='الصف الثاني'!AX11 -> 60 | AI11: ='الصف الثاني'!AY11 -> 244 | AJ11: ='الصف الثاني'!BA11 -> 0 | AK11: ='الصف الثاني'!BB11 -> 8 | AL11: ='الصف الثاني'!BC11 -> راسبة | AM11: ='الصف الثاني'!BD11 -> عربي - انجليزي - رياضيات - فيزياء - - حاسب - امن صناعي - رسم فني - تخطيط - تكنولوجيا عمليات نظري - تاريخ الفنون - تكنولوجيا الخامات - تكنولوجيا الاجهزة - تكنولوجيا العمليات عملي - تربية دينية
A12: 8 | B12: ='الصف الثاني'!D12 -> 2708 | C12: ='الصف الثاني'!E12 -> حبيبة محمد شحاته على حسن | D12: ='الصف الثاني'!F12 -> 30011061800685 | E12: ='الصف الثاني'!H12 -> زخرفة قرار | F12: ='الصف الثاني'!I27 -> منقولة | G12: ='الصف الثاني'!J27 -> مسلمة | H12: ='الصف الثاني'!K27 -> مصرية | I12: ='الصف الثاني'!M12 -> 0 | J12: ='الصف الثاني'!N12 -> 14.5 | K12: ='الصف الثاني'!P12 -> 0 | L12: ='الصف الثاني'!Q12 -> 13 | M12: ='الصف الثاني'!S12 -> 0 | N12: ='الصف الثاني'!T12 -> 17 | O12: ='الصف الثاني'!V12 -> 0 | P12: ='الصف الثاني'!W12 -> 13.5 | Q12: ='الصف الثاني'!Y12 -> 0 | R12: ='الصف الثاني'!Z12 -> 5 | S12: ='الصف الثاني'!AB12 -> 0 | T12: ='الصف الثاني'!AC12 -> 6 | U12: ='الصف الثاني'!AE12 -> 0 | V12: ='الصف الثاني'!AF12 -> 40 | W12: ='الصف الثاني'!AH12 -> 0 | X12: ='الصف الثاني'!AI12 -> 10 | Y12: ='الصف الثاني'!AK12 -> 0 | Z12: ='الصف الثاني'!AL12 -> 21 | AA12: ='الصف الثاني'!AN12 -> 0 | AB12: ='الصف الثاني'!AO12 -> 18 | AC12: ='الصف الثاني'!AQ12 -> 0 | AD12: ='الصف الثاني'!AR12 -> 19 | AE12: ='الصف الثاني'!AT12 -> 0 | AF12: ='الصف الثاني'!AU12 -> 12 | AG12: ='الصف الثاني'!AW12 -> 0 | AH12: ='الصف الثاني'!AX12 -> 56 | AI12: ='الصف الثاني'!AY12 -> 245 | AJ12: ='الصف الثاني'!BA12 -> 0 | AK12: ='الصف الثاني'!BB12 -> 7.5 | AL12: ='الصف الثاني'!BC12 -> راسبة | AM12: ='الصف الثاني'!BD12 -> عربي - انجليزي - رياضيات - فيزياء - - حاسب - امن صناعي - رسم فني - تخطيط - تكنولوجيا عمليات نظري - تاريخ الفنون - تكنولوجيا الخامات - تكنولوجيا الاجهزة - تكنولوجيا العمليات عملي - تربية دينية
A13: 9 | B13: ='الصف الثاني'!D13 -> 2709 | C13: ='الصف الثاني'!E13 -> حنان سيد احمد مصطفى سلطان | D13: ='الصف الثاني'!F13 -> 26711271803623 | E13: ='الصف الثاني'!H13 -> زخرفة قرار | F13: ='الصف الثاني'!I28 -> منقولة | G13: ='الصف الثاني'!J28 -> مسلمة | H13: ='الصف الثاني'!K28 -> مصرية | I13: ='الصف الثاني'!M13 -> 0 | J13: ='الصف الثاني'!N13 -> 13.5 | K13: ='الصف الثاني'!P13 -> 0 | L13: ='الصف الثاني'!Q13 -> 7.5 | M13: ='الصف الثاني'!S13 -> 0 | N13: ='الصف الثاني'!T13 -> 13 | O13: ='الصف الثاني'!V13 -> 0 | P13: ='الصف الثاني'!W13 -> 12.5 | Q13: ='الصف الثاني'!Y13 -> 0 | R13: ='الصف الثاني'!Z13 -> 5 | S13: ='الصف الثاني'!AB13 -> 0 | T13: ='الصف الثاني'!AC13 -> 7 | U13: ='الصف الثاني'!AE13 -> 0 | V13: ='الصف الثاني'!AF13 -> 35 | W13: ='الصف الثاني'!AH13 -> 0 | X13: ='الصف الثاني'!AI13 -> 7 | Y13: ='الصف الثاني'!AK13 -> 0 | Z13: ='الصف الثاني'!AL13 -> 20 | AA13: ='الصف الثاني'!AN13 -> 0 | AB13: ='الصف الثاني'!AO13 -> 19 | AC13: ='الصف الثاني'!AQ13 -> 0 | AD13: ='الصف الثاني'!AR13 -> 15 | AE13: ='الصف الثاني'!AT13 -> 0 | AF13: ='الصف الثاني'!AU13 -> 11 | AG13: ='الصف الثاني'!AW13 -> 0 | AH13: ='الصف الثاني'!AX13 -> 52 | AI13: ='الصف الثاني'!AY13 -> 217.5 | AJ13: ='الصف الثاني'!BA13 -> 0 | AK13: ='الصف الثاني'!BB13 -> 7 | AL13: ='الصف الثاني'!BC13 -> راسبة | AM13: ='الصف الثاني'!BD13 -> عربي - انجليزي - رياضيات - فيزياء - - حاسب - امن صناعي - رسم فني - تخطيط - تكنولوجيا عمليات نظري - تاريخ الفنون - تكنولوجيا الخامات - تكنولوجيا الاجهزة - تكنولوجيا العمليات عملي - تربية دينية
A14: 10 | B14: ='الصف الثاني'!D14 -> 2710 | C14: ='الصف الثاني'!E14 -> دينا احمد فرجاني خير واقد | D14: ='الصف الثاني'!F14 -> 29808171801466 | E14: ='الصف الثاني'!H14 -> زخرفة قرار | F14: ='الصف الثاني'!I29 -> منقولة | G14: ='الصف الثاني'!J29 -> مسلمة | H14: ='الصف الثاني'!K29 -> مصرية | I14: ='الصف الثاني'!M14 -> 0 | J14: ='الصف الثاني'!N14 -> 11.5 | K14: ='الصف الثاني'!P14 -> 0 | L14: ='الصف الثاني'!Q14 -> 13.5 | M14: ='الصف الثاني'!S14 -> 0 | N14: ='الصف الثاني'!T14 -> 3 | O14: ='الصف الثاني'!V14 -> 0 | P14: ='الصف الثاني'!W14 -> 13.5 | Q14: ='الصف الثاني'!Y14 -> 0 | R14: ='الصف الثاني'!Z14 -> 5 | S14: ='الصف الثاني'!AB14 -> 0 | T14: ='الصف الثاني'!AC14 -> 7 | U14: ='الصف الثاني'!AE14 -> 0 | V14: ='الصف الثاني'!AF14 -> 40 | W14: ='الصف الثاني'!AH14 -> 0 | X14: ='الصف الثاني'!AI14 -> 8 | Y14: ='الصف الثاني'!AK14 -> 0 | Z14: ='الصف الثاني'!AL14 -> 16 | AA14: ='الصف الثاني'!AN14 -> 0 | AB14: ='الصف الثاني'!AO14 -> 14 | AC14: ='الصف الثاني'!AQ14 -> 0 | AD14: ='الصف الثاني'!AR14 -> 18 | AE14: ='الصف الثاني'!AT14 -> 0 | AF14: ='الصف الثاني'!AU14 -> 11 | AG14: ='الصف الثاني'!AW14 -> 0 | AH14: ='الصف الثاني'!AX14 -> 56 | AI14: ='الصف الثاني'!AY14 -> 216.5 | AJ14: ='الصف الثاني'!BA14 -> 0 | AK14: ='الصف الثاني'!BB14 -> 7.5 | AL14: ='الصف الثاني'!BC14 -> راسبة | AM14: ='الصف الثاني'!BD14 -> عربي - انجليزي - رياضيات - فيزياء - - حاسب - امن صناعي - رسم فني - تخطيط - تكنولوجيا عمليات نظري - تاريخ الفنون - تكنولوجيا الخامات - تكنولوجيا الاجهزة - تكنولوجيا العمليات عملي - تربية دينية
A15: 11 | B15: ='الصف الثاني'!D15 -> 2711 | C15: ='الصف الثاني'!E15 -> ريهام منصور محمد حسن شعيشع | D15: ='الصف الثاني'!F15 -> 29711141800445 | E15: ='الصف الثاني'!H15 -> زخرفة قرار | F15: ='الصف الثاني'!I30 -> منقولة | G15: ='الصف الثاني'!J30 -> مسلمة | H15: ='الصف الثاني'!K30 -> مصرية | I15: ='الصف الثاني'!M15 -> 0 | J15: ='الصف الثاني'!N15 -> 11.5 | K15: ='الصف الثاني'!P15 -> 0 | L15: ='الصف الثاني'!Q15 -> 13.5 | M15: ='الصف الثاني'!S15 -> 0 | N15: ='الصف الثاني'!T15 -> 3 | O15: ='الصف الثاني'!V15 -> 0 | P15: ='الصف الثاني'!W15 -> 12 | Q15: ='الصف الثاني'!Y15 -> 0 | R15: ='الصف الثاني'!Z15 -> 5 | S15: ='الصف الثاني'!AB15 -> 0 | T15: ='الصف الثاني'!AC15 -> 7 | U15: ='الصف الثاني'!AE15 -> 0 | V15: ='الصف الثاني'!AF15 -> 40 | W15: ='الصف الثاني'!AH15 -> 0 | X15: ='الصف الثاني'!AI15 -> 12 | Y15: ='الصف الثاني'!AK15 -> 0 | Z15: ='الصف الثاني'!AL15 -> 19 | AA15: ='الصف الثاني'!AN15 -> 0 | AB15: ='الصف الثاني'!AO15 -> 17 | AC15: ='الصف الثاني'!AQ15 -> 0 | AD15: ='الصف الثاني'!AR15 -> 19 | AE15: ='الصف الثاني'!AT15 -> 0 | AF15: ='الصف الثاني'!AU15 -> 11 | AG15: ='الصف الثاني'!AW15 -> 0 | AH15: ='الصف الثاني'!AX15 -> 60 | AI15: ='الصف الثاني'!AY15 -> 230 | AJ15: ='الصف الثاني'!BA15 -> 0 | AK15: ='الصف الثاني'!BB15 -> 8.5 | AL15: ='الصف الثاني'!BC15 -> راسبة | AM15: ='الصف الثاني'!BD15 -> عربي - انجليزي - رياضيات - فيزياء - - حاسب - امن صناعي - رسم فني - تخطيط - تكنولوجيا عمليات نظري - تاريخ الفنون - تكنولوجيا الخامات - تكنولوجيا الاجهزة - تكنولوجيا العمليات عملي - تربية دينية
A16: 12 | B16: ='الصف الثاني'!D16 -> 2712 | C16: ='الصف الثاني'!E16 -> سارة عبد القادر ابراهيم على حسن | D16: ='الصف الثاني'!F16 -> 29303171800104 | E16: ='الصف الثاني'!H16 -> زخرفة قرار | F16: ='الصف الثاني'!I31 -> منقولة | G16: ='الصف الثاني'!J31 -> مسلمة | H16: ='الصف الثاني'!K31 -> مصرية | I16: ='الصف الثاني'!M16 -> 0 | J16: ='الصف الثاني'!N16 -> 13 | K16: ='الصف الثاني'!P16 -> 0 | L16: ='الصف الثاني'!Q16 -> 14 | M16: ='الصف الثاني'!S16 -> 0 | N16: ='الصف الثاني'!T16 -> 3 | O16: ='الصف الثاني'!V16 -> 0 | P16: ='الصف الثاني'!W16 -> 14.5 | Q16: ='الصف الثاني'!Y16 -> 0 | R16: ='الصف الثاني'!Z16 -> 5 | S16: ='الصف الثاني'!AB16 -> 0 | T16: ='الصف الثاني'!AC16 -> 8 | U16: ='الصف الثاني'!AE16 -> 0 | V16: ='الصف الثاني'!AF16 -> 35 | W16: ='الصف الثاني'!AH16 -> 0 | X16: ='الصف الثاني'!AI16 -> 12 | Y16: ='الصف الثاني'!AK16 -> 0 | Z16: ='الصف الثاني'!AL16 -> 18 | AA16: ='الصف الثاني'!AN16 -> 0 | AB16: ='الصف الثاني'!AO16 -> 18 | AC16: ='الصف الثاني'!AQ16 -> 0 | AD16: ='الصف الثاني'!AR16 -> 18 | AE16: ='الصف الثاني'!AT16 -> 0 | AF16: ='الصف الثاني'!AU16 -> 9 | AG16: ='الصف الثاني'!AW16 -> 0 | AH16: ='الصف الثاني'!AX16 -> 57 | AI16: ='الصف الثاني'!AY16 -> 224.5 | AJ16: ='الصف الثاني'!BA16 -> 0 | AK16: ='الصف الثاني'!BB16 -> 8 | AL16: ='الصف الثاني'!BC16 -> راسبة | AM16: ='الصف الثاني'!BD16 -> عربي - انجليزي - رياضيات - فيزياء - - حاسب - امن صناعي - رسم فني - تخطيط - تكنولوجيا عمليات نظري - تاريخ الفنون - تكنولوجيا الخامات - تكنولوجيا الاجهزة - تكنولوجيا العمليات عملي - تربية دينية
A17: 13 | B17: ='الصف الثاني'!D17 -> 2713 | C17: ='الصف الثاني'!E17 -> سلوى سعيد محمد عبد الحليم | D17: ='الصف الثاني'!F17 -> 27702091803123 | E17: ='الصف الثاني'!H17 -> زخرفة قرار | F17: ='الصف الثاني'!I32 -> منقولة | G17: ='الصف الثاني'!J32 -> مسلمة | H17: ='الصف الثاني'!K32 -> مصرية | I17: ='الصف الثاني'!M17 -> 0 | J17: ='الصف الثاني'!N17 -> 15 | K17: ='الصف الثاني'!P17 -> 0 | L17: ='الصف الثاني'!Q17 -> 10 | M17: ='الصف الثاني'!S17 -> 0 | N17: ='الصف الثاني'!T17 -> 0 | O17: ='الصف الثاني'!V17 -> 0 | P17: ='الصف الثاني'!W17 -> 13 | Q17: ='الصف الثاني'!Y17 -> 0 | R17: ='الصف الثاني'!Z17 -> 5 | S17: ='الصف الثاني'!AB17 -> 0 | T17: ='الصف الثاني'!AC17 -> 7 | U17: ='الصف الثاني'!AE17 -> 0 | V17: ='الصف الثاني'!AF17 -> 35 | W17: ='الصف الثاني'!AH17 -> 0 | X17: ='الصف الثاني'!AI17 -> 8 | Y17: ='الصف الثاني'!AK17 -> 0 | Z17: ='الصف الثاني'!AL17 -> 21 | AA17: ='الصف الثاني'!AN17 -> 0 | AB17: ='الصف الثاني'!AO17 -> 18 | AC17: ='الصف الثاني'!AQ17 -> 0 | AD17: ='الصف الثاني'!AR17 -> 16 | AE17: ='الصف الثاني'!AT17 -> 0 | AF17: ='الصف الثاني'!AU17 -> 11 | AG17: ='الصف الثاني'!AW17 -> 0 | AH17: ='الصف الثاني'!AX17 -> 54 | AI17: ='الصف الثاني'!AY17 -> 213 | AJ17: ='الصف الثاني'!BA17 -> 0 | AK17: ='الصف الثاني'!BB17 -> 8 | AL17: ='الصف الثاني'!BC17 -> راسبة | AM17: ='الصف الثاني'!BD17 -> عربي - انجليزي - رياضيات - فيزياء - - حاسب - امن صناعي - رسم فني - تخطيط - تكنولوجيا عمليات نظري - تاريخ الفنون - تكنولوجيا الخامات - تكنولوجيا الاجهزة - تكنولوجيا العمليات عملي - تربية دينية
A18: 14 | B18: ='الصف الثاني'!D18 -> 2714 | C18: ='الصف الثاني'!E18 -> سماء محمد عبده ابراهيم زعتر | D18: ='الصف الثاني'!F18 -> 29804091800781 | E18: ='الصف الثاني'!H18 -> زخرفة قرار | F18: ='الصف الثاني'!I33 -> منقولة | G18: ='الصف الثاني'!J33 -> مسلمة | H18: ='الصف الثاني'!K33 -> مصرية | I18: ='الصف الثاني'!M18 -> 0 | J18: ='الصف الثاني'!N18 -> 13.5 | K18: ='الصف الثاني'!P18 -> 0 | L18: ='الصف الثاني'!Q18 -> 12 | M18: ='الصف الثاني'!S18 -> 0 | N18: ='الصف الثاني'!T18 -> 10 | O18: ='الصف الثاني'!V18 -> 0 | P18: ='الصف الثاني'!W18 -> 14 | Q18: ='الصف الثاني'!Y18 -> 0 | R18: ='الصف الثاني'!Z18 -> 5 | S18: ='الصف الثاني'!AB18 -> 0 | T18: ='الصف الثاني'!AC18 -> 7 | U18: ='الصف الثاني'!AE18 -> 0 | V18: ='الصف الثاني'!AF18 -> 35 | W18: ='الصف الثاني'!AH18 -> 0 | X18: ='الصف الثاني'!AI18 -> 8 | Y18: ='الصف الثاني'!AK18 -> 0 | Z18: ='الصف الثاني'!AL18 -> 16 | AA18: ='الصف الثاني'!AN18 -> 0 | AB18: ='الصف الثاني'!AO18 -> 16 | AC18: ='الصف الثاني'!AQ18 -> 0 | AD18: ='الصف الثاني'!AR18 -> 17 | AE18: ='الصف الثاني'!AT18 -> 0 | AF18: ='الصف الثاني'!AU18 -> 8 | AG18: ='الصف الثاني'!AW18 -> 0 | AH18: ='الصف الثاني'!AX18 -> 52 | AI18: ='الصف الثاني'!AY18 -> 213.5 | AJ18: ='الصف الثاني'!BA18 -> 0 | AK18: ='الصف الثاني'!BB18 -> 8 | AL18: ='الصف الثاني'!BC18 -> راسبة | AM18: ='الصف الثاني'!BD18 -> عربي - انجليزي - رياضيات - فيزياء - - حاسب - امن صناعي - رسم فني - تخطيط - تكنولوجيا عمليات نظري - تاريخ الفنون - تكنولوجيا الخامات - تكنولوجيا الاجهزة - تكنولوجيا العمليات عملي - تربية دينية
A19: 15 | B19: ='الصف الثاني'!D19 -> 2715 | C19: ='الصف الثاني'!E19 -> سهام رضا احمد محمد مصطفى | D19: ='الصف الثاني'!F19 -> 29402160202866 | E19: ='الصف الثاني'!H19 -> زخرفة قرار | F19: ='الصف الثاني'!I19 -> منقولة | G19: ='الصف الثاني'!J19 -> مسلمة | H19: ='الصف الثاني'!K19 -> مصرية | I19: ='الصف الثاني'!M19 -> 0 | J19: ='الصف الثاني'!N19 -> 14.5 | K19: ='الصف الثاني'!P19 -> 0 | L19: ='الصف الثاني'!Q19 -> 16.5 | M19: ='الصف الثاني'!S19 -> 0 | N19: ='الصف الثاني'!T19 -> 8 | O19: ='الصف الثاني'!V19 -> 0 | P19: ='الصف الثاني'!W19 -> 14.5 | Q19: ='الصف الثاني'!Y19 -> 0 | R19: ='الصف الثاني'!Z19 -> 5 | S19: ='الصف الثاني'!AB19 -> 0 | T19: ='الصف الثاني'!AC19 -> 8 | U19: ='الصف الثاني'!AE19 -> 0 | V19: ='الصف الثاني'!AF19 -> 35 | W19: ='الصف الثاني'!AH19 -> 0 | X19: ='الصف الثاني'!AI19 -> 8 | Y19: ='الصف الثاني'!AK19 -> 0 | Z19: ='الصف الثاني'!AL19 -> 16 | AA19: ='الصف الثاني'!AN19 -> 0 | AB19: ='الصف الثاني'!AO19 -> 18 | AC19: ='الصف الثاني'!AQ19 -> 0 | AD19: ='الصف الثاني'!AR19 -> 19 | AE19: ='الصف الثاني'!AT19 -> 0 | AF19: ='الصف الثاني'!AU19 -> 8 | AG19: ='الصف الثاني'!AW19 -> 0 | AH19: ='الصف الثاني'!AX19 -> 53 | AI19: ='الصف الثاني'!AY19 -> 223.5 | AJ19: ='الصف الثاني'!BA19 -> 0 | AK19: ='الصف الثاني'!BB19 -> 7.5 | AL19: ='الصف الثاني'!BC19 -> راسبة | AM19: ='الصف الثاني'!BD19 -> عربي - انجليزي - رياضيات - فيزياء - - حاسب - امن صناعي - رسم فني - تخطيط - تكنولوجيا عمليات نظري - تاريخ الفنون - تكنولوجيا الخامات - تكنولوجيا الاجهزة - تكنولوجيا العمليات عملي - تربية دينية
A20: 16 | B20: ='الصف الثاني'!D20 -> 2716 | C20: ='الصف الثاني'!E20 -> سومه عبد الغني فتحي عبد الغني | D20: ='الصف الثاني'!F20 -> 29002041802903 | E20: ='الصف الثاني'!H20 -> زخرفة قرار | F20: ='الصف الثاني'!I20 -> منقولة | G20: ='الصف الثاني'!J20 -> مسلمة | H20: ='الصف الثاني'!K20 -> مصرية | I20: ='الصف الثاني'!M20 -> 0 | J20: ='الصف الثاني'!N20 -> 9.5 | K20: ='الصف الثاني'!P20 -> 0 | L20: ='الصف الثاني'!Q20 -> 8 | M20: ='الصف الثاني'!S20 -> 0 | N20: ='الصف الثاني'!T20 -> 6 | O20: ='الصف الثاني'!V20 -> 0 | P20: ='الصف الثاني'!W20 -> 15 | Q20: ='الصف الثاني'!Y20 -> 0 | R20: ='الصف الثاني'!Z20 -> 7 | S20: ='الصف الثاني'!AB20 -> 0 | T20: ='الصف الثاني'!AC20 -> 7 | U20: ='الصف الثاني'!AE20 -> 0 | V20: ='الصف الثاني'!AF20 -> 35 | W20: ='الصف الثاني'!AH20 -> 0 | X20: ='الصف الثاني'!AI20 -> 9 | Y20: ='الصف الثاني'!AK20 -> 0 | Z20: ='الصف الثاني'!AL20 -> 16 | AA20: ='الصف الثاني'!AN20 -> 0 | AB20: ='الصف الثاني'!AO20 -> 18 | AC20: ='الصف الثاني'!AQ20 -> 0 | AD20: ='الصف الثاني'!AR20 -> 17 | AE20: ='الصف الثاني'!AT20 -> 0 | AF20: ='الصف الثاني'!AU20 -> 9 | AG20: ='الصف الثاني'!AW20 -> 0 | AH20: ='الصف الثاني'!AX20 -> 53 | AI20: ='الصف الثاني'!AY20 -> 209.5 | AJ20: ='الصف الثاني'!BA20 -> 0 | AK20: ='الصف الثاني'!BB20 -> 6 | AL20: ='الصف الثاني'!BC20 -> راسبة | AM20: ='الصف الثاني'!BD20 -> عربي - انجليزي - رياضيات - فيزياء - - حاسب - امن صناعي - رسم فني - تخطيط - تكنولوجيا عمليات نظري - تاريخ الفنون - تكنولوجيا الخامات - تكنولوجيا الاجهزة - تكنولوجيا العمليات عملي - تربية دينية
A21: 17 | B21: ='الصف الثاني'!D21 -> 2717 | C21: ='الصف الثاني'!E21 -> شرين عادل محمد احمد حسن | D21: ='الصف الثاني'!F21 -> 29905091800308 | E21: ='الصف الثاني'!H21 -> زخرفة قرار | F21: ='الصف الثاني'!I21 -> منقولة | G21: ='الصف الثاني'!J21 -> مسلمة | H21: ='الصف الثاني'!K21 -> مصرية | I21: ='الصف الثاني'!M21 -> 0 | J21: ='الصف الثاني'!N21 -> 10 | K21: ='الصف الثاني'!P21 -> 0 | L21: ='الصف الثاني'!Q21 -> 14.5 | M21: ='الصف الثاني'!S21 -> 0 | N21: ='الصف الثاني'!T21 -> 5 | O21: ='الصف الثاني'!V21 -> 0 | P21: ='الصف الثاني'!W21 -> 13 | Q21: ='الصف الثاني'!Y21 -> 0 | R21: ='الصف الثاني'!Z21 -> 7 | S21: ='الصف الثاني'!AB21 -> 0 | T21: ='الصف الثاني'!AC21 -> 7 | U21: ='الصف الثاني'!AE21 -> 0 | V21: ='الصف الثاني'!AF21 -> 35 | W21: ='الصف الثاني'!AH21 -> 0 | X21: ='الصف الثاني'!AI21 -> 9 | Y21: ='الصف الثاني'!AK21 -> 0 | Z21: ='الصف الثاني'!AL21 -> 15 | AA21: ='الصف الثاني'!AN21 -> 0 | AB21: ='الصف الثاني'!AO21 -> 14 | AC21: ='الصف الثاني'!AQ21 -> 0 | AD21: ='الصف الثاني'!AR21 -> 16 | AE21: ='الصف الثاني'!AT21 -> 0 | AF21: ='الصف الثاني'!AU21 -> 8 | AG21: ='الصف الثاني'!AW21 -> 0 | AH21: ='الصف الثاني'!AX21 -> 52 | AI21: ='الصف الثاني'!AY21 -> 205.5 | AJ21: ='الصف الثاني'!BA21 -> 0 | AK21: ='الصف الثاني'!BB21 -> 7.5 | AL21: ='الصف الثاني'!BC21 -> راسبة | AM21: ='الصف الثاني'!BD21 -> عربي - انجليزي - رياضيات - فيزياء - - حاسب - امن صناعي - رسم فني - تخطيط - تكنولوجيا عمليات نظري - تاريخ الفنون - تكنولوجيا الخامات - تكنولوجيا الاجهزة - تكنولوجيا العمليات عملي - تربية دينية
A22: 18 | B22: ='الصف الثاني'!D22 -> 2718 | C22: ='الصف الثاني'!E22 -> شيماء جمال سعيد ابراهيم | D22: ='الصف الثاني'!F22 -> 29905011810723 | E22: ='الصف الثاني'!H22 -> زخرفة قرار | F22: ='الصف الثاني'!I22 -> منقولة | G22: ='الصف الثاني'!J22 -> مسلمة | H22: ='الصف الثاني'!K22 -> مصرية | I22: ='الصف الثاني'!M22 -> 0 | J22: ='الصف الثاني'!N22 -> 0 | K22: ='الصف الثاني'!P22 -> 0 | L22: ='الصف الثاني'!Q22 -> 0 | M22: ='الصف الثاني'!S22 -> 0 | N22: ='الصف الثاني'!T22 -> 0 | O22: ='الصف الثاني'!V22 -> 0 | P22: ='الصف الثاني'!W22 -> 0 | Q22: ='الصف الثاني'!Y22 -> 0 | R22: ='الصف الثاني'!Z22 -> 7 | S22: ='الصف الثاني'!AB22 -> 0 | T22: ='الصف الثاني'!AC22 -> 0 | U22: ='الصف الثاني'!AE22 -> 0 | V22: ='الصف الثاني'!AF22 -> 0 | W22: ='الصف الثاني'!AH22 -> 0 | X22: ='الصف الثاني'!AI22 -> 0 | Y22: ='الصف الثاني'!AK22 -> 0 | Z22: ='الصف الثاني'!AL22 -> 0 | AA22: ='الصف الثاني'!AN22 -> 0 | AB22: ='الصف الثاني'!AO22 -> 0 | AC22: ='الصف الثاني'!AQ22 -> 0 | AD22: ='الصف الثاني'!AR22 -> 0 | AE22: ='الصف الثاني'!AT22 -> 0 | AF22: ='الصف الثاني'!AU22 -> 0 | AG22: ='الصف الثاني'!AW22 -> 0 | AH22: ='الصف الثاني'!AX22 -> 0 | AI22: ='الصف الثاني'!AY22 -> 7 | AJ22: ='الصف الثاني'!BA22 -> 0 | AK22: ='الصف الثاني'!BB22 -> 0 | AL22: ='الصف الثاني'!BC22 -> راسبة | AM22: ='الصف الثاني'!BD22 -> عربي - انجليزي - رياضيات - فيزياء - - حاسب - امن صناعي - رسم فني - تخطيط - تكنولوجيا عمليات نظري - تاريخ الفنون - تكنولوجيا الخامات - تكنولوجيا الاجهزة - تكنولوجيا العمليات عملي - تربية دينية
A23: 19 | B23: ='الصف الثاني'!D23 -> 2719 | C23: ='الصف الثاني'!E23 -> علياء ابو الحسن محمد علي عطية | D23: ='الصف الثاني'!F23 -> 29809191801981 | E23: ='الصف الثاني'!H23 -> زخرفة قرار | F23: ='الصف الثاني'!I23 -> منقولة | G23: ='الصف الثاني'!J23 -> مسلمة | H23: ='الصف الثاني'!K23 -> مصرية | I23: ='الصف الثاني'!M23 -> 0 | J23: ='الصف الثاني'!N23 -> 14 | K23: ='الصف الثاني'!P23 -> 0 | L23: ='الصف الثاني'!Q23 -> 14 | M23: ='الصف الثاني'!S23 -> 0 | N23: ='الصف الثاني'!T23 -> 5 | O23: ='الصف الثاني'!V23 -> 0 | P23: ='الصف الثاني'!W23 -> 13 | Q23: ='الصف الثاني'!Y23 -> 0 | R23: ='الصف الثاني'!Z23 -> 5 | S23: ='الصف الثاني'!AB23 -> 0 | T23: ='الصف الثاني'!AC23 -> 7 | U23: ='الصف الثاني'!AE23 -> 0 | V23: ='الصف الثاني'!AF23 -> 40 | W23: ='الصف الثاني'!AH23 -> 0 | X23: ='الصف الثاني'!AI23 -> 11 | Y23: ='الصف الثاني'!AK23 -> 0 | Z23: ='الصف الثاني'!AL23 -> 18 | AA23: ='الصف الثاني'!AN23 -> 0 | AB23: ='الصف الثاني'!AO23 -> 14 | AC23: ='الصف الثاني'!AQ23 -> 0 | AD23: ='الصف الثاني'!AR23 -> 18 | AE23: ='الصف الثاني'!AT23 -> 0 | AF23: ='الصف الثاني'!AU23 -> 12 | AG23: ='الصف الثاني'!AW23 -> 0 | AH23: ='الصف الثاني'!AX23 -> 52 | AI23: ='الصف الثاني'!AY23 -> 223 | AJ23: ='الصف الثاني'!BA23 -> 0 | AK23: ='الصف الثاني'!BB23 -> 8 | AL23: ='الصف الثاني'!BC23 -> راسبة | AM23: ='الصف الثاني'!BD23 -> عربي - انجليزي - رياضيات - فيزياء - - حاسب - امن صناعي - رسم فني - تخطيط - تكنولوجيا عمليات نظري - تاريخ الفنون - تكنولوجيا الخامات - تكنولوجيا الاجهزة - تكنولوجيا العمليات عملي - تربية دينية
A24: 20 | B24: ='الصف الثاني'!D24 -> 2720 | C24: ='الصف الثاني'!E24 -> غادة حسين كامل حسين | D24: ='الصف الثاني'!F24 -> 29301011841405 | E24: ='الصف الثاني'!H24 -> زخرفة قرار | F24: ='الصف الثاني'!I24 -> منقولة | G24: ='الصف الثاني'!J24 -> مسلمة | H24: ='الصف الثاني'!K24 -> مصرية | I24: ='الصف الثاني'!M24 -> 0 | J24: ='الصف الثاني'!N24 -> 15 | K24: ='الصف الثاني'!P24 -> 0 | L24: ='الصف الثاني'!Q24 -> 14 | M24: ='الصف الثاني'!S24 -> 0 | N24: ='الصف الثاني'!T24 -> 5 | O24: ='الصف الثاني'!V24 -> 0 | P24: ='الصف الثاني'!W24 -> 15.5 | Q24: ='الصف الثاني'!Y24 -> 0 | R24: ='الصف الثاني'!Z24 -> 5 | S24: ='الصف الثاني'!AB24 -> 0 | T24: ='الصف الثاني'!AC24 -> 7 | U24: ='الصف الثاني'!AE24 -> 0 | V24: ='الصف الثاني'!AF24 -> 40 | W24: ='الصف الثاني'!AH24 -> 0 | X24: ='الصف الثاني'!AI24 -> 10 | Y24: ='الصف الثاني'!AK24 -> 0 | Z24: ='الصف الثاني'!AL24 -> 18 | AA24: ='الصف الثاني'!AN24 -> 0 | AB24: ='الصف الثاني'!AO24 -> 18 | AC24: ='الصف الثاني'!AQ24 -> 0 | AD24: ='الصف الثاني'!AR24 -> 19 | AE24: ='الصف الثاني'!AT24 -> 0 | AF24: ='الصف الثاني'!AU24 -> 12 | AG24: ='الصف الثاني'!AW24 -> 0 | AH24: ='الصف الثاني'!AX24 -> 53 | AI24: ='الصف الثاني'!AY24 -> 231.5 | AJ24: ='الصف الثاني'!BA24 -> 0 | AK24: ='الصف الثاني'!BB24 -> 8 | AL24: ='الصف الثاني'!BC24 -> راسبة | AM24: ='الصف الثاني'!BD24 -> عربي - انجليزي - رياضيات - فيزياء - - حاسب - امن صناعي - رسم فني - تخطيط - تكنولوجيا عمليات نظري - تاريخ الفنون - تكنولوجيا الخامات - تكنولوجيا الاجهزة - تكنولوجيا العمليات عملي - تربية دينية
A25: 21 | B25: ='الصف الثاني'!D25 -> 2721 | C25: ='الصف الثاني'!E25 -> غادة رجب فؤاد عبد المقصود بوادي | D25: ='الصف الثاني'!F25 -> 29808101803381 | E25: ='الصف الثاني'!H25 -> زخرفة قرار | F25: ='الصف الثاني'!I25 -> منقولة | G25: ='الصف الثاني'!J25 -> مسلمة | H25: ='الصف الثاني'!K25 -> مصرية | I25: ='الصف الثاني'!M25 -> 0 | J25: ='الصف الثاني'!N25 -> 13 | K25: ='الصف الثاني'!P25 -> 0 | L25: ='الصف الثاني'!Q25 -> 13 | M25: ='الصف الثاني'!S25 -> 0 | N25: ='الصف الثاني'!T25 -> 6 | O25: ='الصف الثاني'!V25 -> 0 | P25: ='الصف الثاني'!W25 -> 16 | Q25: ='الصف الثاني'!Y25 -> 0 | R25: ='الصف الثاني'!Z25 -> 5 | S25: ='الصف الثاني'!AB25 -> 0 | T25: ='الصف الثاني'!AC25 -> 7 | U25: ='الصف الثاني'!AE25 -> 0 | V25: ='الصف الثاني'!AF25 -> 40 | W25: ='الصف الثاني'!AH25 -> 0 | X25: ='الصف الثاني'!AI25 -> 10 | Y25: ='الصف الثاني'!AK25 -> 0 | Z25: ='الصف الثاني'!AL25 -> 15 | AA25: ='الصف الثاني'!AN25 -> 0 | AB25: ='الصف الثاني'!AO25 -> 19 | AC25: ='الصف الثاني'!AQ25 -> 0 | AD25: ='الصف الثاني'!AR25 -> 19 | AE25: ='الصف الثاني'!AT25 -> 0 | AF25: ='الصف الثاني'!AU25 -> 12 | AG25: ='الصف الثاني'!AW25 -> 0 | AH25: ='الصف الثاني'!AX25 -> 53 | AI25: ='الصف الثاني'!AY25 -> 228 | AJ25: ='الصف الثاني'!BA25 -> 0 | AK25: ='الصف الثاني'!BB25 -> 7.5 | AL25: ='الصف الثاني'!BC25 -> راسبة | AM25: ='الصف الثاني'!BD25 -> عربي - انجليزي - رياضيات - فيزياء - - حاسب - امن صناعي - رسم فني - تخطيط - تكنولوجيا عمليات نظري - تاريخ الفنون - تكنولوجيا الخامات - تكنولوجيا الاجهزة - تكنولوجيا العمليات عملي - تربية دينية
A26: 22 | B26: ='الصف الثاني'!D26 -> 2722 | C26: ='الصف الثاني'!E26 -> منال سيد احمد ابو الحمد كبير | D26: ='الصف الثاني'!F26 -> 29810011809121 | E26: ='الصف الثاني'!H26 -> زخرفة قرار | F26: ='الصف الثاني'!I26 -> منقولة | G26: ='الصف الثاني'!J26 -> مسلمة | H26: ='الصف الثاني'!K26 -> مصرية | I26: ='الصف الثاني'!M26 -> 0 | J26: ='الصف الثاني'!N26 -> 13.5 | K26: ='الصف الثاني'!P26 -> 0 | L26: ='الصف الثاني'!Q26 -> 13.5 | M26: ='الصف الثاني'!S26 -> 0 | N26: ='الصف الثاني'!T26 -> 8 | O26: ='الصف الثاني'!V26 -> 0 | P26: ='الصف الثاني'!W26 -> 16 | Q26: ='الصف الثاني'!Y26 -> 0 | R26: ='الصف الثاني'!Z26 -> 6 | S26: ='الصف الثاني'!AB26 -> 0 | T26: ='الصف الثاني'!AC26 -> 8 | U26: ='الصف الثاني'!AE26 -> 0 | V26: ='الصف الثاني'!AF26 -> 40 | W26: ='الصف الثاني'!AH26 -> 0 | X26: ='الصف الثاني'!AI26 -> 10 | Y26: ='الصف الثاني'!AK26 -> 0 | Z26: ='الصف الثاني'!AL26 -> 18 | AA26: ='الصف الثاني'!AN26 -> 0 | AB26: ='الصف الثاني'!AO26 -> 19 | AC26: ='الصف الثاني'!AQ26 -> 0 | AD26: ='الصف الثاني'!AR26 -> 19 | AE26: ='الصف الثاني'!AT26 -> 0 | AF26: ='الصف الثاني'!AU26 -> 12 | AG26: ='الصف الثاني'!AW26 -> 0 | AH26: ='الصف الثاني'!AX26 -> 56 | AI26: ='الصف الثاني'!AY26 -> 239 | AJ26: ='الصف الثاني'!BA26 -> 0 | AK26: ='الصف الثاني'!BB26 -> 5.5 | AL26: ='الصف الثاني'!BC26 -> راسبة | AM26: ='الصف الثاني'!BD26 -> عربي - انجليزي - رياضيات - فيزياء - - حاسب - امن صناعي - رسم فني - تخطيط - تكنولوجيا عمليات نظري - تاريخ الفنون - تكنولوجيا الخامات - تكنولوجيا الاجهزة - تكنولوجيا العمليات عملي - تربية دينية
A27: 23 | B27: ='الصف الثاني'!D27 -> 2723 | C27: ='الصف الثاني'!E27 -> ناديه محمد احمد عامر احمد | D27: ='الصف الثاني'!F27 -> 29507032601266 | E27: ='الصف الثاني'!H27 -> زخرفة قرار | F27: ='الصف الثاني'!I27 -> منقولة | G27: ='الصف الثاني'!J27 -> مسلمة | H27: ='الصف الثاني'!K27 -> مصرية | I27: ='الصف الثاني'!M27 -> 0 | J27: ='الصف الثاني'!N27 -> 8 | K27: ='الصف الثاني'!P27 -> 0 | L27: ='الصف الثاني'!Q27 -> 14.5 | M27: ='الصف الثاني'!S27 -> 0 | N27: ='الصف الثاني'!T27 -> 3 | O27: ='الصف الثاني'!V27 -> 0 | P27: ='الصف الثاني'!W27 -> 17 | Q27: ='الصف الثاني'!Y27 -> 0 | R27: ='الصف الثاني'!Z27 -> 5 | S27: ='الصف الثاني'!AB27 -> 0 | T27: ='الصف الثاني'!AC27 -> 9 | U27: ='الصف الثاني'!AE27 -> 0 | V27: ='الصف الثاني'!AF27 -> 40 | W27: ='الصف الثاني'!AH27 -> 0 | X27: ='الصف الثاني'!AI27 -> 10 | Y27: ='الصف الثاني'!AK27 -> 0 | Z27: ='الصف الثاني'!AL27 -> 16 | AA27: ='الصف الثاني'!AN27 -> 0 | AB27: ='الصف الثاني'!AO27 -> 19 | AC27: ='الصف الثاني'!AQ27 -> 0 | AD27: ='الصف الثاني'!AR27 -> 18 | AE27: ='الصف الثاني'!AT27 -> 0 | AF27: ='الصف الثاني'!AU27 -> 11 | AG27: ='الصف الثاني'!AW27 -> 0 | AH27: ='الصف الثاني'!AX27 -> 53 | AI27: ='الصف الثاني'!AY27 -> 223.5 | AJ27: ='الصف الثاني'!BA27 -> 0 | AK27: ='الصف الثاني'!BB27 -> 6.5 | AL27: ='الصف الثاني'!BC27 -> راسبة | AM27: ='الصف الثاني'!BD27 -> عربي - انجليزي - رياضيات - فيزياء - - حاسب - امن صناعي - رسم فني - تخطيط - تكنولوجيا عمليات نظري - تاريخ الفنون - تكنولوجيا الخامات - تكنولوجيا الاجهزة - تكنولوجيا العمليات عملي - تربية دينية
A28: 24 | B28: ='الصف الثاني'!D28 -> 2724 | C28: ='الصف الثاني'!E28 -> ندى السيد عبد السلام البنا | D28: ='الصف الثاني'!F28 -> 29803011816503 | E28: ='الصف الثاني'!H28 -> زخرفة قرار | F28: ='الصف الثاني'!I28 -> منقولة | G28: ='الصف الثاني'!J28 -> مسلمة | H28: ='الصف الثاني'!K28 -> مصرية | I28: ='الصف الثاني'!M28 -> 0 | J28: ='الصف الثاني'!N28 -> 12.5 | K28: ='الصف الثاني'!P28 -> 0 | L28: ='الصف الثاني'!Q28 -> 15 | M28: ='الصف الثاني'!S28 -> 0 | N28: ='الصف الثاني'!T28 -> 6 | O28: ='الصف الثاني'!V28 -> 0 | P28: ='الصف الثاني'!W28 -> 16.5 | Q28: ='الصف الثاني'!Y28 -> 0 | R28: ='الصف الثاني'!Z28 -> 5 | S28: ='الصف الثاني'!AB28 -> 0 | T28: ='الصف الثاني'!AC28 -> 9 | U28: ='الصف الثاني'!AE28 -> 0 | V28: ='الصف الثاني'!AF28 -> 40 | W28: ='الصف الثاني'!AH28 -> 0 | X28: ='الصف الثاني'!AI28 -> 10 | Y28: ='الصف الثاني'!AK28 -> 0 | Z28: ='الصف الثاني'!AL28 -> 15 | AA28: ='الصف الثاني'!AN28 -> 0 | AB28: ='الصف الثاني'!AO28 -> 19 | AC28: ='الصف الثاني'!AQ28 -> 0 | AD28: ='الصف الثاني'!AR28 -> 19 | AE28: ='الصف الثاني'!AT28 -> 0 | AF28: ='الصف الثاني'!AU28 -> 9 | AG28: ='الصف الثاني'!AW28 -> 0 | AH28: ='الصف الثاني'!AX28 -> 54 | AI28: ='الصف الثاني'!AY28 -> 230 | AJ28: ='الصف الثاني'!BA28 -> 0 | AK28: ='الصف الثاني'!BB28 -> 8 | AL28: ='الصف الثاني'!BC28 -> راسبة | AM28: ='الصف الثاني'!BD28 -> عربي - انجليزي - رياضيات - فيزياء - - حاسب - امن صناعي - رسم فني - تخطيط - تكنولوجيا عمليات نظري - تاريخ الفنون - تكنولوجيا الخامات - تكنولوجيا الاجهزة - تكنولوجيا العمليات عملي - تربية دينية
A29: 25 | B29: ='الصف الثاني'!D29 -> 2725 | C29: ='الصف الثاني'!E29 -> ندى مجدي سعد مؤنس | D29: ='الصف الثاني'!F29 -> 29601011827601 | E29: ='الصف الثاني'!H29 -> زخرفة قرار | F29: ='الصف الثاني'!I29 -> منقولة | G29: ='الصف الثاني'!J29 -> مسلمة | H29: ='الصف الثاني'!K29 -> مصرية | I29: ='الصف الثاني'!M29 -> 0 | J29: ='الصف الثاني'!N29 -> 13 | K29: ='الصف الثاني'!P29 -> 0 | L29: ='الصف الثاني'!Q29 -> 14.5 | M29: ='الصف الثاني'!S29 -> 0 | N29: ='الصف الثاني'!T29 -> 3 | O29: ='الصف الثاني'!V29 -> 0 | P29: ='الصف الثاني'!W29 -> 16.5 | Q29: ='الصف الثاني'!Y29 -> 0 | R29: ='الصف الثاني'!Z29 -> 5 | S29: ='الصف الثاني'!AB29 -> 0 | T29: ='الصف الثاني'!AC29 -> 9 | U29: ='الصف الثاني'!AE29 -> 0 | V29: ='الصف الثاني'!AF29 -> 35 | W29: ='الصف الثاني'!AH29 -> 0 | X29: ='الصف الثاني'!AI29 -> 10 | Y29: ='الصف الثاني'!AK29 -> 0 | Z29: ='الصف الثاني'!AL29 -> 16 | AA29: ='الصف الثاني'!AN29 -> 0 | AB29: ='الصف الثاني'!AO29 -> 18 | AC29: ='الصف الثاني'!AQ29 -> 0 | AD29: ='الصف الثاني'!AR29 -> 19 | AE29: ='الصف الثاني'!AT29 -> 0 | AF29: ='الصف الثاني'!AU29 -> 10 | AG29: ='الصف الثاني'!AW29 -> 0 | AH29: ='الصف الثاني'!AX29 -> 54 | AI29: ='الصف الثاني'!AY29 -> 223 | AJ29: ='الصف الثاني'!BA29 -> 0 | AK29: ='الصف الثاني'!BB29 -> 6 | AL29: ='الصف الثاني'!BC29 -> راسبة | AM29: ='الصف الثاني'!BD29 -> عربي - انجليزي - رياضيات - فيزياء - - حاسب - امن صناعي - رسم فني - تخطيط - تكنولوجيا عمليات نظري - تاريخ الفنون - تكنولوجيا الخامات - تكنولوجيا الاجهزة - تكنولوجيا العمليات عملي - تربية دينية
A30: 26 | B30: ='الصف الثاني'!D30 -> 2726 | C30: ='الصف الثاني'!E30 -> نهى محمد فؤاد قطب زلهف | D30: ='الصف الثاني'!F30 -> 29807231801324 | E30: ='الصف الثاني'!H30 -> زخرفة قرار | F30: ='الصف الثاني'!I30 -> منقولة | G30: ='الصف الثاني'!J30 -> مسلمة | H30: ='الصف الثاني'!K30 -> مصرية | I30: ='الصف الثاني'!M30 -> 0 | J30: ='الصف الثاني'!N30 -> 11 | K30: ='الصف الثاني'!P30 -> 0 | L30: ='الصف الثاني'!Q30 -> 14 | M30: ='الصف الثاني'!S30 -> 0 | N30: ='الصف الثاني'!T30 -> 4 | O30: ='الصف الثاني'!V30 -> 0 | P30: ='الصف الثاني'!W30 -> 13.5 | Q30: ='الصف الثاني'!Y30 -> 0 | R30: ='الصف الثاني'!Z30 -> 5 | S30: ='الصف الثاني'!AB30 -> 0 | T30: ='الصف الثاني'!AC30 -> 9 | U30: ='الصف الثاني'!AE30 -> 0 | V30: ='الصف الثاني'!AF30 -> 40 | W30: ='الصف الثاني'!AH30 -> 0 | X30: ='الصف الثاني'!AI30 -> 10 | Y30: ='الصف الثاني'!AK30 -> 0 | Z30: ='الصف الثاني'!AL30 -> 16 | AA30: ='الصف الثاني'!AN30 -> 0 | AB30: ='الصف الثاني'!AO30 -> 19 | AC30: ='الصف الثاني'!AQ30 -> 0 | AD30: ='الصف الثاني'!AR30 -> 19 | AE30: ='الصف الثاني'!AT30 -> 0 | AF30: ='الصف الثاني'!AU30 -> 9 | AG30: ='الصف الثاني'!AW30 -> 0 | AH30: ='الصف الثاني'!AX30 -> 58 | AI30: ='الصف الثاني'!AY30 -> 227.5 | AJ30: ='الصف الثاني'!BA30 -> 0 | AK30: ='الصف الثاني'!BB30 -> 7.5 | AL30: ='الصف الثاني'!BC30 -> راسبة | AM30: ='الصف الثاني'!BD30 -> عربي - انجليزي - رياضيات - فيزياء - - حاسب - امن صناعي - رسم فني - تخطيط - تكنولوجيا عمليات نظري - تاريخ الفنون - تكنولوجيا الخامات - تكنولوجيا الاجهزة - تكنولوجيا العمليات عملي - تربية دينية
A31: 27 | B31: ='الصف الثاني'!D31 -> 2727 | C31: ='الصف الثاني'!E31 -> هبة محمود سعد الدين محمود النفراوي | D31: ='الصف الثاني'!F31 -> 29806201803741 | E31: ='الصف الثاني'!H31 -> زخرفة قرار | F31: ='الصف الثاني'!I31 -> منقولة | G31: ='الصف الثاني'!J31 -> مسلمة | H31: ='الصف الثاني'!K31 -> مصرية | I31: ='الصف الثاني'!M31 -> 0 | J31: ='الصف الثاني'!N31 -> 11 | K31: ='الصف الثاني'!P31 -> 0 | L31: ='الصف الثاني'!Q31 -> 14.5 | M31: ='الصف الثاني'!S31 -> 0 | N31: ='الصف الثاني'!T31 -> 5 | O31: ='الصف الثاني'!V31 -> 0 | P31: ='الصف الثاني'!W31 -> 15 | Q31: ='الصف الثاني'!Y31 -> 0 | R31: ='الصف الثاني'!Z31 -> 5 | S31: ='الصف الثاني'!AB31 -> 0 | T31: ='الصف الثاني'!AC31 -> 9 | U31: ='الصف الثاني'!AE31 -> 0 | V31: ='الصف الثاني'!AF31 -> 35 | W31: ='الصف الثاني'!AH31 -> 0 | X31: ='الصف الثاني'!AI31 -> 10 | Y31: ='الصف الثاني'!AK31 -> 0 | Z31: ='الصف الثاني'!AL31 -> 16 | AA31: ='الصف الثاني'!AN31 -> 0 | AB31: ='الصف الثاني'!AO31 -> 19 | AC31: ='الصف الثاني'!AQ31 -> 0 | AD31: ='الصف الثاني'!AR31 -> 19 | AE31: ='الصف الثاني'!AT31 -> 0 | AF31: ='الصف الثاني'!AU31 -> 8 | AG31: ='الصف الثاني'!AW31 -> 0 | AH31: ='الصف الثاني'!AX31 -> 56 | AI31: ='الصف الثاني'!AY31 -> 222.5 | AJ31: ='الصف الثاني'!BA31 -> 0 | AK31: ='الصف الثاني'!BB31 -> 5.5 | AL31: ='الصف الثاني'!BC31 -> راسبة | AM31: ='الصف الثاني'!BD31 -> عربي - انجليزي - رياضيات - فيزياء - - حاسب - امن صناعي - رسم فني - تخطيط - تكنولوجيا عمليات نظري - تاريخ الفنون - تكنولوجيا الخامات - تكنولوجيا الاجهزة - تكنولوجيا العمليات عملي - تربية دينية
A32: 28 | B32: ='الصف الثاني'!D32 -> 2728 | C32: ='الصف الثاني'!E32 -> وفاء محمود مصطفى على السيد | D32: ='الصف الثاني'!F32 -> 30012241801708 | E32: ='الصف الثاني'!H32 -> زخرفة قرار | F32: ='الصف الثاني'!I32 -> منقولة | G32: ='الصف الثاني'!J32 -> مسلمة | H32: ='الصف الثاني'!K32 -> مصرية | I32: ='الصف الثاني'!M32 -> 0 | J32: ='الصف الثاني'!N32 -> 12.5 | K32: ='الصف الثاني'!P32 -> 0 | L32: ='الصف الثاني'!Q32 -> 12.5 | M32: ='الصف الثاني'!S32 -> 0 | N32: ='الصف الثاني'!T32 -> 5 | O32: ='الصف الثاني'!V32 -> 0 | P32: ='الصف الثاني'!W32 -> 15 | Q32: ='الصف الثاني'!Y32 -> 0 | R32: ='الصف الثاني'!Z32 -> 7 | S32: ='الصف الثاني'!AB32 -> 0 | T32: ='الصف الثاني'!AC32 -> 9 | U32: ='الصف الثاني'!AE32 -> 0 | V32: ='الصف الثاني'!AF32 -> 35 | W32: ='الصف الثاني'!AH32 -> 0 | X32: ='الصف الثاني'!AI32 -> 10 | Y32: ='الصف الثاني'!AK32 -> 0 | Z32: ='الصف الثاني'!AL32 -> 15 | AA32: ='الصف الثاني'!AN32 -> 0 | AB32: ='الصف الثاني'!AO32 -> 19 | AC32: ='الصف الثاني'!AQ32 -> 0 | AD32: ='الصف الثاني'!AR32 -> 19 | AE32: ='الصف الثاني'!AT32 -> 0 | AF32: ='الصف الثاني'!AU32 -> 10 | AG32: ='الصف الثاني'!AW32 -> 0 | AH32: ='الصف الثاني'!AX32 -> 55 | AI32: ='الصف الثاني'!AY32 -> 224 | AJ32: ='الصف الثاني'!BA32 -> 0 | AK32: ='الصف الثاني'!BB32 -> 7.5 | AL32: ='الصف الثاني'!BC32 -> راسبة | AM32: ='الصف الثاني'!BD32 -> عربي - انجليزي - رياضيات - فيزياء - - حاسب - امن صناعي - رسم فني - تخطيط - تكنولوجيا عمليات نظري - تاريخ الفنون - تكنولوجيا الخامات - تكنولوجيا الاجهزة - تكنولوجيا العمليات عملي - تربية دينية
A33: 29 | B33: ='الصف الثاني'!D33 -> 2729 | C33: ='الصف الثاني'!E33 -> ياسمين محمد حسين فياله | D33: ='الصف الثاني'!F33 -> 30108081802726 | E33: ='الصف الثاني'!H33 -> زخرفة قرار | F33: ='الصف الثاني'!I33 -> منقولة | G33: ='الصف الثاني'!J33 -> مسلمة | H33: ='الصف الثاني'!K33 -> مصرية | I33: ='الصف الثاني'!M33 -> 0 | J33: ='الصف الثاني'!N33 -> 13.5 | K33: ='الصف الثاني'!P33 -> 0 | L33: ='الصف الثاني'!Q33 -> 15 | M33: ='الصف الثاني'!S33 -> 0 | N33: ='الصف الثاني'!T33 -> 5 | O33: ='الصف الثاني'!V33 -> 0 | P33: ='الصف الثاني'!W33 -> 15 | Q33: ='الصف الثاني'!Y33 -> 0 | R33: ='الصف الثاني'!Z33 -> 7 | S33: ='الصف الثاني'!AB33 -> 0 | T33: ='الصف الثاني'!AC33 -> 9 | U33: ='الصف الثاني'!AE33 -> 0 | V33: ='الصف الثاني'!AF33 -> 40 | W33: ='الصف الثاني'!AH33 -> 0 | X33: ='الصف الثاني'!AI33 -> 10 | Y33: ='الصف الثاني'!AK33 -> 0 | Z33: ='الصف الثاني'!AL33 -> 16 | AA33: ='الصف الثاني'!AN33 -> 0 | AB33: ='الصف الثاني'!AO33 -> 19 | AC33: ='الصف الثاني'!AQ33 -> 0 | AD33: ='الصف الثاني'!AR33 -> 19 | AE33: ='الصف الثاني'!AT33 -> 0 | AF33: ='الصف الثاني'!AU33 -> 11 | AG33: ='الصف الثاني'!AW33 -> 0 | AH33: ='الصف الثاني'!AX33 -> 58 | AI33: ='الصف الثاني'!AY33 -> 237.5 | AJ33: ='الصف الثاني'!BA33 -> 0 | AK33: ='الصف الثاني'!BB33 -> 7.5 | AL33: ='الصف الثاني'!BC33 -> راسبة | AM33: ='الصف الثاني'!BD33 -> عربي - انجليزي - رياضيات - فيزياء - - حاسب - امن صناعي - رسم فني - تخطيط - تكنولوجيا عمليات نظري - تاريخ الفنون - تكنولوجيا الخامات - تكنولوجيا الاجهزة - تكنولوجيا العمليات عملي - تربية دينية
B34: أمــــــــــــــلاه رصــــــــــــــــــده مسئول الحاسب الآلي مشرف الكنترول رئيس الكنترول | AH34: مدير المدرســــــــــــــة

Sheet ناجحات
A6: م | B6: رقم الجلوس | C6: الاســـــــــــــــــــــــم | D6: الديانة | E6: الرقم القومى | F6: تاريخ الميلاد | G6: حالة القيد | H6: الجنسية | I6: اللغة العربية | J6: اللغة الانجليزية | K6: الرياضيات | L6: الفيزياء | M6: حاسب آلي | N6: امن صناعي | O6: رسم فني | P6: تخطيط | Q6: تك. العمليات ن | R6: تك. خامات | S6: تك. اجهزة | T6: تاريخ الفنون | U6: تك. العمليات ع | V6: المجموع الكلي | W6: التربية الدينية
I7: المجموع | J7: المجموع | K7: المجموع | L7: المجموع | M7: المجموع | N7: المجموع | O7: المجموع | P7: المجموع | Q7: المجموع | R7: المجموع | S7: المجموع | T7: المجموع | U7: المجموع | V7: المجموع | W7: المجموع
I8: 50 | J8: 40 | K8: 50 | L8: 40 | M8: 20 | N8: 20 | O8: 100 | P8: 40 | Q8: 60 | R8: 50 | S8: 50 | T8: 40 | U8: 140 | V8: =SUM(I8:U8) -> 700 | W8: 20
I9: 25 | J9: 20 | K9: 25 | L9: 20 | M9: 10 | N9: 10 | O9: 50 | P9: 20 | Q9: 30 | R9: 25 | S9: 25 | T9: 20 | U9: 70 | V9: =SUM(I9:U9) -> 350 | W9: 10
A10: 1 | F10: =IF(LEN(TRIM($E10))=0,"",IF(OR(NOT(ISNUMBER($E10)),LEN($E10)<>14),"Error_MyNumber",DATE(IF(LEFT($E10,1)="2",MID($E10,2,2),"20"&MID($E10,2,2)),MID($E10,4,2),MID($E10,6,2)))) -> 
A11: 2 | F11: =IF(LEN(TRIM($E11))=0,"",IF(OR(NOT(ISNUMBER($E11)),LEN($E11)<>14),"Error_MyNumber",DATE(IF(LEFT($E11,1)="2",MID($E11,2,2),"20"&MID($E11,2,2)),MID($E11,4,2),MID($E11,6,2)))) -> 
A12: 3
A13: 4
A14: 5
A15: 6
A16: 7
A17: 8
A18: 9
A19: 10
A20: 11
A21: 12
A22: 13
A23: 14
A24: 15
D25: كتبه املاه راجع الكتابة راجع الاملاء مشرف الكنترول رئيس الكنترول مدير المدرسة
A26: 16
A27: 17
A28: 18
A29: 19
A30: 20
A31: 21
A32: 22
A33: 23
A34: 24
A35: 25
A36: 26
A37: 27
A38: 28
A39: 29
A40: 30
D41: كتبه املاه راجع الكتابة راجع الاملاء مشرف الكنترول رئيس الكنترول مدير المدرسة
A42: 31
A43: 32
A44: 33
A45: 34
A46: 35
A47: 36
A48: 37
A49: 38
A50: 39
A51: 40
A52: 41
A53: 42
A54: 43
A55: 44
A56: 45
D57: كتبه املاه راجع الكتابة راجع الاملاء مشرف الكنترول رئيس الكنترول مدير المدرسة
A58: 46
A59: 47
A60: 48
A61: 49
A62: 50
A63: 51
A64: 52
A65: 53
A66: 54
A67: 55
A68: 56
A69: 57
A70: 58
A71: 59
A72: 60
D73: كتبه املاه راجع الكتابة راجع الاملاء مشرف الكنترول رئيس الكنترول مدير المدرسة
A74: 61
A75: 62
A76: 63
A77: 64
A78: 65
A79: 66 | F79: =IF(LEN(TRIM($E79))=0,"",IF(OR(NOT(ISNUMBER($E79)),LEN($E79)<>14),"Error_MyNumber",DATE(IF(LEFT($E79,1)="2",MID($E79,2,2),"20"&MID($E79,2,2)),MID($E79,4,2),MID($E79,6,2)))) -> 
A80: 67
A81: 68
A82: 69
A83: 70
A84: 71
A85: 72
A86: 73
A87: 74
A88: 75
D89: كتبه املاه راجع الكتابة راجع الاملاء مشرف الكنترول رئيس الكنترول مدير المدرسة
A90: 76
A91: 77
A92: 78
A93: 79
A94: 80
A95: 81
A96: 82
A97: 83
A98: 84
A99: 85
A100: 86
A101: 87
A102: 88
A103: 89
A104: 90
D105: كتبه املاه راجع الكتابة راجع الاملاء مشرف الكنترول رئيس الكنترول مدير المدرسة
A106: 91
A107: 92
A108: 93
A109: 94
A110: 95
A111: 96
A112: 97
A113: 98
A114: 99
A115: 100
A116: 101
A117: 102
A118: 103
A119: 104
A120: 105
D121: كتبه املاه راجع الكتابة راجع الاملاء مشرف الكنترول رئيس الكنترول مدير المدرسة
A122: 106
A123: 107
A124: 108
A125: 109
A126: 110
A127: 111
A128: 112
A129: 113
A130: 114
A131: 115
A132: 116
A133: 117
A134: 118
A135: 119
A136: 120
D137: كتبه املاه راجع الكتابة راجع الاملاء مشرف الكنترول رئيس الكنترول مدير المدرسة
A138: 121
A139: 122
A140: 123
A141: 124
A142: 125
A143: 126
A144: 127
A145: 128
A146: 129
A147: 130 | F147: =IF(LEN(TRIM($E147))=0,"",IF(OR(NOT(ISNUMBER($E147)),LEN($E147)<>14),"Error_MyNumber",DATE(IF(LEFT($E147,1)="2",MID($E147,2,2),"20"&MID($E147,2,2)),MID($E147,4,2),MID($E147,6,2)))) -> 
A148: 131
A149: 132
A150: 133
A151: 134
A152: 135
D153: كتبه املاه راجع الكتابة راجع الاملاء مشرف الكنترول رئيس الكنترول مدير المدرسة

Sheet دور ثان
A6: م | B6: رقم البجلوس | C6: الاســـــــــــــــــــــــم | D6: الديانة | E6: الرقم القومى | F6: تاريخ الميلاد | G6: حالة القيد | H6: الجنسية | I6: اللغة العربية | J6: اللغة الانجليزية | K6: الرياضيات | L6: الفيزياء | M6: حاسب آلي | N6: امن صناعي | O6: رسم فني | P6: تخطيط | Q6: تك. العمليات ن | R6: تك. خامات | S6: تك. اجهزة | T6: تاريخ الفنون | U6: تك. العمليات ع | V6: المجموع الكلي | W6: التربية الدينية | X6: مواد الرسوب
I7: المجموع | J7: المجموع | K7: المجموع | L7: المجموع | M7: المجموع | N7: المجموع | O7: المجموع | P7: المجموع | Q7: المجموع | R7: المجموع | S7: المجموع | T7: المجموع | U7: المجموع | V7: المجموع | W7: المجموع
I8: 50 | J8: 40 | K8: 50 | L8: 40 | M8: 20 | N8: 20 | O8: 100 | P8: 40 | Q8: 60 | R8: 50 | S8: 50 | T8: 40 | U8: 140 | V8: =SUM(I8:U8) -> 700 | W8: 20
I9: 25 | J9: 20 | K9: 25 | L9: 20 | M9: 10 | N9: 10 | O9: 50 | P9: 20 | Q9: 30 | R9: 25 | S9: 25 | T9: 20 | U9: 70 | V9: =SUM(I9:U9) -> 350 | W9: 10
A10: 1 | F10: =IF(LEN(TRIM($E10))=0,"",IF(OR(NOT(ISNUMBER($E10)),LEN($E10)<>14),"Error_MyNumber",DATE(IF(LEFT($E10,1)="2",MID($E10,2,2),"20"&MID($E10,2,2)),MID($E10,4,2),MID($E10,6,2)))) -> 
A11: 2 | F11: =IF(LEN(TRIM($E11))=0,"",IF(OR(NOT(ISNUMBER($E11)),LEN($E11)<>14),"Error_MyNumber",DATE(IF(LEFT($E11,1)="2",MID($E11,2,2),"20"&MID($E11,2,2)),MID($E11,4,2),MID($E11,6,2)))) -> 
A12: 3
A13: 4
A14: 5
A15: 6
A16: 7
A17: 8
A18: 9
A19: 10
A20: 11
A21: 12
A22: 13
A23: 14
A24: 15
D25: كتبه املاه راجع الكتابة راجع الاملاء مشرف الكنترول رئيس الكنترول مدير المدرسة
A26: 16
A27: 17
A28: 18
A29: 19
A30: 20
A31: 21
A32: 22
A33: 23
A34: 24
A35: 25
A36: 26
A37: 27
A38: 28
A39: 29
A40: 30
D41: كتبه املاه راجع الكتابة راجع الاملاء مشرف الكنترول رئيس الكنترول مدير المدرسة
A42: 31
A43: 32
A44: 33
A45: 34
A46: 35
A47: 36
A48: 37
A49: 38
A50: 39
A51: 40
A52: 41
A53: 42
A54: 43
A55: 44
A56: 45
D57: كتبه املاه راجع الكتابة راجع الاملاء مشرف الكنترول رئيس الكنترول مدير المدرسة
A58: 46
A59: 47
A60: 48
A61: 49
A62: 50
A63: 51
A64: 52
A65: 53
A66: 54
A67: 55
A68: 56
A69: 57
A70: 58
A71: 59
A72: 60
D73: كتبه املاه راجع الكتابة راجع الاملاء مشرف الكنترول رئيس الكنترول مدير المدرسة
A74: 61
A75: 62
A76: 63
A77: 64
A78: 65
A79: 66 | F79: =IF(LEN(TRIM($E79))=0,"",IF(OR(NOT(ISNUMBER($E79)),LEN($E79)<>14),"Error_MyNumber",DATE(IF(LEFT($E79,1)="2",MID($E79,2,2),"20"&MID($E79,2,2)),MID($E79,4,2),MID($E79,6,2)))) -> 
A80: 67
A81: 68
A82: 69
A83: 70
A84: 71
A85: 72
A86: 73
A87: 74
A88: 75
D89: كتبه املاه راجع الكتابة راجع الاملاء مشرف الكنترول رئيس الكنترول مدير المدرسة
A90: 76
A91: 77
A92: 78
A93: 79
A94: 80
A95: 81
A96: 82
A97: 83
A98: 84
A99: 85
A100: 86
A101: 87
A102: 88
A103: 89
A104: 90
D105: كتبه املاه راجع الكتابة راجع الاملاء مشرف الكنترول رئيس الكنترول مدير المدرسة
A106: 91
A107: 92
A108: 93
A109: 94
A110: 95
A111: 96
A112: 97
A113: 98
A114: 99
A115: 100
A116: 101
A117: 102
A118: 103
A119: 104
A120: 105
D121: كتبه املاه راجع الكتابة راجع الاملاء مشرف الكنترول رئيس الكنترول مدير المدرسة

Sheet راسبات
A6: م | B6: رقم البجلوس | C6: الاســـــــــــــــــــــــم | D6: الديانة | E6: الرقم القومى | F6: تاريخ الميلاد | G6: حالة القيد | H6: الجنسية | I6: اللغة العربية | J6: اللغة الانجليزية | K6: الرياضيات | L6: الفيزياء | M6: حاسب آلي | N6: امن صناعي | O6: رسم فني | P6: تخطيط | Q6: تك. العمليات ن | R6: تك. خامات | S6: تك. اجهزة | T6: تاريخ الفنون | U6: تك. العمليات ع | V6: المجموع الكلي | W6: التربية الدينية | X6: مواد الرسوب
I7: المجموع | J7: المجموع | K7: المجموع | L7: المجموع | M7: المجموع | N7: المجموع | O7: المجموع | P7: المجموع | Q7: المجموع | R7: المجموع | S7: المجموع | T7: المجموع | U7: المجموع | V7: المجموع | W7: المجموع
I8: 50 | J8: 40 | K8: 50 | L8: 40 | M8: 20 | N8: 20 | O8: 100 | P8: 40 | Q8: 60 | R8: 50 | S8: 50 | T8: 40 | U8: 140 | V8: =SUM(I8:U8) -> 700 | W8: 20
I9: 25 | J9: 20 | K9: 25 | L9: 20 | M9: 10 | N9: 10 | O9: 50 | P9: 20 | Q9: 30 | R9: 25 | S9: 25 | T9: 20 | U9: 70 | V9: =SUM(I9:U9) -> 350 | W9: 10
A10: 1 | F10: =IF(LEN(TRIM($E10))=0,"",IF(OR(NOT(ISNUMBER($E10)),LEN($E10)<>14),"Error_MyNumber",DATE(IF(LEFT($E10,1)="2",MID($E10,2,2),"20"&MID($E10,2,2)),MID($E10,4,2),MID($E10,6,2)))) -> 
A11: 2 | F11: =IF(LEN(TRIM($E11))=0,"",IF(OR(NOT(ISNUMBER($E11)),LEN($E11)<>14),"Error_MyNumber",DATE(IF(LEFT($E11,1)="2",MID($E11,2,2),"20"&MID($E11,2,2)),MID($E11,4,2),MID($E11,6,2)))) -> 
A12: 3
A13: 4
A14: 5
A15: 6
A16: 7
A17: 8
A18: 9
A19: 10
A20: 11
A21: 12
A22: 13
A23: 14
A24: 15
D25: كتبه املاه راجع الكتابة راجع الاملاء مشرف الكنترول رئيس الكنترول مدير المدرسة
A26: 16
A27: 17
A28: 18
A29: 19
A30: 20
A31: 21
A32: 22
A33: 23
A34: 24
A35: 25
A36: 26
A37: 27
A38: 28
A39: 29
A40: 30
D41: كتبه املاه راجع الكتابة راجع الاملاء مشرف الكنترول رئيس الكنترول مدير المدرسة
A42: 31
A43: 32
A44: 33
A45: 34
A46: 35
A47: 36
A48: 37
A49: 38
A50: 39
A51: 40
A52: 41
A53: 42
A54: 43
A55: 44
A56: 45
D57: كتبه املاه راجع الكتابة راجع الاملاء مشرف الكنترول رئيس الكنترول مدير المدرسة
A58: 46
A59: 47
A60: 48
A61: 49
A62: 50
A63: 51
A64: 52
A65: 53
A66: 54
A67: 55
A68: 56
A69: 57
A70: 58
A71: 59
A72: 60
D73: كتبه املاه راجع الكتابة راجع الاملاء مشرف الكنترول رئيس الكنترول مدير المدرسة
A74: 61
A75: 62
A76: 63
A77: 64
A78: 65
A79: 66 | F79: =IF(LEN(TRIM($E79))=0,"",IF(OR(NOT(ISNUMBER($E79)),LEN($E79)<>14),"Error_MyNumber",DATE(IF(LEFT($E79,1)="2",MID($E79,2,2),"20"&MID($E79,2,2)),MID($E79,4,2),MID($E79,6,2)))) -> 
A80: 67
A81: 68
A82: 69
A83: 70
A84: 71
A85: 72
A86: 73
A87: 74
A88: 75
D89: كتبه املاه راجع الكتابة راجع الاملاء مشرف الكنترول رئيس الكنترول مدير المدرسة
A90: 76
A91: 77
A92: 78
A93: 79
A94: 80
A95: 81
A96: 82
A97: 83
A98: 84
A99: 85
A100: 86
A101: 87
A102: 88
A103: 89
A104: 90
D105: كتبه املاه راجع الكتابة راجع الاملاء مشرف الكنترول رئيس الكنترول مدير المدرسة
A106: 91
A107: 92
A108: 93
A109: 94
A110: 95
A111: 96
A112: 97
A113: 98
A114: 99
A115: 100
A116: 101
A117: 102
A118: 103
A119: 104
A120: 105
D121: كتبه املاه راجع الكتابة راجع الاملاء مشرف الكنترول رئيس الكنترول مدير المدرسة
